Cogmind - Beta 12 @@@ ROGUE MODE // 2023.04.20 @ 19:55:52 Player: maxwell Result: Assimilated 0b10! Performance ------------- Evolutions (9) 4500 Regions Visited (37) 7400 Robots Destroyed (575) 2875 Value Destroyed (32862) 32862 Prototype IDs (86) 1720 Alien Tech Used (12) 2400 Bonus (35965) 35965 TOTAL SCORE: 87722 Bonus ------- High Alert Combat Kills 3390 Follower Combat Kills 9556 Entered Garrisons 2000 Used RIF Installer 6500 Network Hubs Disabled 600 A7 Reached Mainframe 300 Met R17 at Cetus 500 Found Hidden Lab 3000 Met R17 at Research 2000 Scanned by Researcher 1000 Pursued by Intercept 500 Destroyed MAIN.C Guards 500 Met MAIN.C 5000 Used 0b10 Conduit 2000 Win 3000 Friendly Fire -3881 Cogmind --------- Core Integrity 1260/1600 Matter 300/300 Energy 98/100 System Corruption 8% Temperature Cool (0) Movement Core (50) Location 0b10 Command Parts ------- > --- POWER (3) -------- (None) > --- PROPULSION (6) --- (None) > --- UTILITY (13) ----- (None) > --- WEAPON (4) ------- (None) > --- INVENTORY (5) ---- Advanced Sensor Array Improved Cloaking Device Relay Coupler [Demolisher] (21) Core Cannon Peak State ------------ > --- POWER ------------ Reinforced Antimatter Reactor Light Quantum Reactor Light Quantum Reactor > --- PROPULSION ------- Advanced Heavy Siege Treads Advanced Heavy Siege Treads Advanced Heavy Siege Treads > --- UTILITY ---------- Huge Storage Unit Advanced Signal Interpreter Experimental Core Analyzer Quantum Capacitor Improved Cloaking Device SHELL Armor AEGIS Remote Shield Antimissile System Relay Coupler [C] Relay Coupler [Hunter] > --- WEAPON ----------- Enhanced Nova Cannon Guided Remote Datajack Sigix Broadsword > --- INVENTORY -------- Advanced Heavy Siege Treads Coolant Network Advanced Sensor Array Relay Coupler [NC] Relay Coupler [NC] Relay Coupler [C] Relay Coupler [C] Relay Coupler [C] Relay Coupler [C] Relay Coupler [C] Relay Coupler [Sentry] Relay Coupler [Sentry] Relay Coupler [Sentry] Relay Coupler [Hunter] Relay Coupler [Hunter] Relay Coupler [Heavy] Relay Coupler [Heavy] Relay Coupler [Behemoth] Integrity Redistributor Subatomic Replicator Core Cannon [Rating: 241] Favorites ----------- Power Reinforced Antimatter Reactor Engine Reinforced Deuterium Engine Power Core Reinforced Fission Core Reactor Reinforced Antimatter Reactor Propulsion Advanced Heavy Siege Treads Treads Advanced Heavy Siege Treads Leg Flexi-carbon Leg Wheel Wheel Utility Huge Storage Unit Device Advanced Heat Sink Storage Huge Storage Unit Processor Advanced Signal Interpreter Hackware Relay Coupler [NC] Protection SHELL Armor Artifact Spacefold Activator Weapon Enhanced Nova Cannon Energy Gun Force Rifle Energy Cannon Enhanced Nova Cannon Ballistic Gun Autogun Ballistic Cannon Heavy Linear Accelerator Launcher Improved Proton Missile Launcher Special Weapon Guided Remote Datajack Impact Weapon Great Maul Slashing Weapon Sigix Broadsword Special Melee Weapon Improved Datajack Build | -11 -10 -10 -9 -9 -9 -8 -8 -8 -8 -8 -7 -7 -6 -6 -6 -6 -6 -6 -6 -5 -5 -4 -4 -4 -4 -4 -3 -3 -3 -2 -2 -2 -2 -1 -1 -1 -1 ------- Run | Jun Mat Min Mat Min Exi Min Mat Gar Mat Gar Fac Gar Fac Gar Ext Cet Arc Hub Gar Fac Gar Fac Gar Fac Arm Lab Res Tes Gar Res Qua Sec Gar Acc Gar Acc Com Slots Evolved 18 | . . . 2 . . . 2 . . . 2 . 2 . . . . . . 2 . 2 . . . . 2 . . 2 . . . 2 . . . Power 2 | . . . . . . . . . . . . . . . . . . . . 1 . . . . . . . . . . . . . 1 . . . Propulsion 4 | . . . . . . . 2 . . . . . . . . . . . . . . . . . . . 2 . . . . . . . . . . Utility 10 | . . . 2 . . . . . . . 2 . 2 . . . . . . . . 2 . . . . . . . 2 . . . . . . . Weapon 2 | . . . . . . . . . . . . . . . . . . . . 1 . . . . . . . . . . . . . 1 . . . Parts Attached 742 | . 12 2 40 16 9 1 35 23 22 20 10 14 3 14 8 31 17 22 28 11 44 8 35 9 66 6 16 34 23 47 35 33 26 5 9 4 4 Power 49 | . 1 . 4 1 . . 2 1 . . 1 1 . 5 1 3 1 . 3 1 5 . 2 . 6 3 . 2 . 1 2 2 . 1 . . . Engine 17 | . 1 . 3 1 . . 2 1 . . 1 1 . 4 1 . . . . . 2 . . . . . . . . . . . . . . . . Core 8 | . . . 1 . . . . . . . . . . 1 . 1 1 . . . 1 . . . 2 . . . . . . 1 . . . . . Reactor 24 | . . . . . . . . . . . . . . . . 2 . . 3 1 2 . 2 . 4 3 . 2 . 1 2 1 . 1 . . . Propulsion 92 | . 3 . 8 2 3 . 13 10 1 1 1 3 . 4 3 3 . 3 1 . 9 . 5 . 3 . 4 1 1 9 . . . . 1 . . Treads 83 | . 3 . 8 2 3 . 9 8 1 1 1 3 . 4 3 3 . 3 1 . 7 . 5 . 3 . 4 1 1 8 . . . . 1 . . Leg 2 | . . . . . . . . . . . . . . . . . . . . . 2 . . . . . . . . . . . . . . . . Wheel 7 | . . . . . . . 4 2 . . . . . . . . . . . . . . . . . . . . . 1 . . . . . . . Hover . | . . . . . . . . . . . . . . . . . . . . . . . . . . . . . . . . . . . . . . Flight . | . . . . . . . . . . . . . . . . . . . . . . . . . . . . . . . . . . . . . . Utility 323 | . 5 1 15 10 2 . 11 7 8 5 5 5 3 3 . 18 13 12 9 6 13 6 13 9 38 3 7 13 4 25 10 16 12 3 7 2 4 Device 192 | . . . 7 10 1 . 7 3 5 3 2 2 2 3 . 9 9 8 3 2 4 5 7 4 27 1 5 10 3 21 7 11 3 3 2 1 2 Storage 13 | . 2 1 5 . 1 . 1 1 . . . . . . . 1 . . . . . . . . . . . . . 1 . . . . . . . Processor 19 | . . . . . . . 1 . 1 . 1 1 . . . 2 . . . 1 . . 1 1 4 . . 2 . 1 1 2 . . . . . Hackware 55 | . . . . . . . . 1 1 . 1 . . . . 1 3 1 4 1 7 1 5 1 2 1 2 . 1 2 2 1 9 . 5 1 2 Protection 43 | . 3 . 3 . . . 2 2 1 2 1 2 1 . . 5 1 3 2 2 2 . . 3 5 1 . 1 . . . 1 . . . . . Artifact 1 | . . . . . . . . . . . . . . . . . . . . . . . . . . . . . . . . 1 . . . . . Weapon 278 | . 3 1 13 3 4 1 9 5 13 14 3 5 . 2 4 7 3 7 15 4 17 2 15 . 19 . 5 18 18 12 23 15 14 1 1 2 . Energy Gun 39 | . 2 . 4 . . . 4 . . . . . . . . 1 . 3 10 . 5 . 2 . 3 . 2 2 1 . . . . . . . . Energy Cannon 118 | . . . 5 . . . 2 2 8 6 2 2 . 2 1 1 2 2 . 1 1 . 5 . 10 . 2 14 12 7 13 7 9 . 1 1 . Ballistic Gun 28 | . . 1 3 3 3 1 3 . . . . . . . . . . . . 2 3 . 2 . 5 . . . . . 1 1 . . . . . Ballistic Cannon 4 | . 1 . . . . . . . . . . . . . . . . 2 . . . . . . . . . 1 . . . . . . . . . Launcher 29 | . . . 1 . . . . 2 2 5 . 2 . . 1 3 . . 4 . 2 1 2 . . . . . 2 1 1 . . . . . . Special Weapon 48 | . . . . . 1 . . . . . . . . . 2 2 1 . 1 1 6 1 4 . 1 . 1 1 3 4 7 6 5 1 . . . Impact Weapon 8 | . . . . . . . . 1 2 3 1 1 . . . . . . . . . . . . . . . . . . . . . . . . . Slashing Weapon 3 | . . . . . . . . . . . . . . . . . . . . . . . . . . . . . . . 1 1 . . . 1 . Piercing Weapon . | . . . . . . . . . . . . . . . . . . . . . . . . . . . . . . . . . . . . . . Special Melee Weapon 1 | . . . . . . . . . 1 . . . . . . . . . . . . . . . . . . . . . . . . . . . . Unidentified Prototypes 47 | . . . 3 2 . . . . . . . . . . . 6 . 1 . . . . . . 6 4 3 7 1 . 7 7 . . . . . Corrupted Parts 15 | . . . . 1 . . . . . . . 2 . . . 7 . 3 . . 2 . . . . . . . . . . . . . . . . System Corruption 87 | . . . . 8 . . . . . . . 15 . . . 47 . 9 . . 8 . . . . . . . . . . . . . . . . Parts Lost 86 | . 3 3 9 3 . . 10 4 . 1 1 8 . . . . . 6 6 4 4 . 2 1 15 . . . . 1 . 2 1 . 1 . 1 Power 6 | . 1 . 1 . . . 1 . . . . 1 . . . . . . 1 . . . . . . . . . . . . 1 . . . . . Propulsion 20 | . . 2 4 . . . 5 2 . . . 3 . . . . . 1 1 1 . . . . 1 . . . . . . . . . . . . Utility 45 | . 1 1 3 3 . . 2 1 . 1 . 3 . . . . . 4 4 3 3 . 1 . 11 . . . . 1 . 1 1 . 1 . . Weapon 15 | . 1 . 1 . . . 2 1 . . 1 1 . . . . . 1 . . 1 . 1 1 3 . . . . . . . . . . . 1 Highest Loss Streak 4 | . 3 3 3 2 . . 2 1 . 1 1 4 . . . . . 2 3 3 1 . 1 1 4 . . . . 1 . 1 1 . 1 . 1 To Critical Strikes 1 | . . . . . . . . . . . . . . . . . . . . . . . . 1 . . . . . . . . . . . . . Average Slot Usage (%) 83 | . 98 62 95 99 87 88 89 90 99 94 89 96 96 65 66 87 77 80 83 82 89 87 88 88 88 91 91 80 76 76 71 65 66 71 72 69 64 Engine 4 | . 14 8 8 11 11 11 9 9 9 9 7 7 6 5 6 . . . . . . 10 7 . . . . . . . . . . . . . . Reactor 3 | . . . . . . . . . . . . . . . . 2 . . 1 11 10 . 2 10 7 10 9 9 9 8 8 6 8 9 11 11 8 Treads 18 | . 24 17 22 22 22 22 24 29 36 36 29 27 26 26 26 20 13 12 12 8 12 10 9 10 13 15 20 17 18 13 12 12 12 11 11 11 10 Device 13 | . . . 24 30 26 22 9 7 7 5 4 9 20 5 6 9 8 14 18 17 12 10 12 12 12 19 19 17 12 12 9 11 9 9 10 8 10 Storage 6 | . 14 8 11 11 11 11 9 9 9 9 7 7 6 6 6 6 6 6 6 5 5 5 5 5 5 5 4 4 4 4 4 4 4 3 3 3 2 Processor 5 | . . . . . . . 5 . . . 2 10 6 . . 11 13 7 6 8 5 5 7 10 14 15 11 9 9 11 5 6 12 8 7 2 . Hackware 8 | . . . . . . . . 5 9 9 12 8 6 6 6 8 12 15 14 4 15 23 23 23 11 6 7 5 4 8 15 9 6 11 11 16 14 Protection 4 | . 12 8 6 1 . . 2 8 8 9 7 8 9 . . 8 2 5 4 4 3 5 1 . 3 2 4 4 4 4 4 4 4 3 3 3 2 Energy Gun 2 | . 14 . 8 . . . 3 . . . . . . . . . . 2 11 11 9 . 3 . . 5 3 2 . . . . . . . . . Energy Cannon 5 | . . . 3 . . . . 10 14 10 13 10 13 13 9 2 6 2 . 2 . 5 2 5 9 10 9 6 9 8 6 3 3 3 2 2 2 Ballistic Gun 3 | . 6 7 8 21 10 22 13 . . . . . . . . . . . . 2 2 5 5 5 2 . . . . . . . . . . . . Special Weapon 1 | . . . . . 5 . . . . . . . . . 2 5 5 . . . 2 4 3 5 1 . . . 1 3 2 . . 3 3 3 2 Naked Turns 137 | . . 114 . . . . . . . . . . . . . . . . . . . . . . . . . . . . . . . . . . 23 Heaviest Build 293 | 11 33 34 101 109 217 219 228 293 108 105 105 113 111 195 189 181 125 144 124 166 166 145 161 166 172 175 184 198 211 202 202 182 182 213 217 214 214 Greatest Support 250 | 20 40 40 40 40 40 40 80 104 104 104 104 104 96 106 106 160 160 160 160 160 150 150 160 160 160 129 189 192 192 240 240 250 250 250 250 250 250 Greatest Overweight (x) 22 | . 1 1 4 2 5 5 22 22 1 1 1 1 1 2 1 2 . . 1 2 2 . 1 1 1 1 . 1 1 1 . . . . . . . Average Overweight (x) . | . . . . 2 3 5 7 3 . . . 1 1 1 1 . . . . . . . . . . 1 . . . . . . . . . . . Largest Inventory Capacity 35 | . 15 15 25 25 35 35 35 35 25 25 25 25 25 25 25 25 25 25 25 25 25 25 25 25 25 25 25 25 25 25 25 25 25 25 25 25 25 Average Capacity 25 | . 14 11 19 25 29 35 35 30 25 25 25 25 25 25 25 25 25 25 25 25 25 25 25 25 25 25 25 25 25 25 25 25 25 25 25 25 24 Most Carried 35 | . 11 11 25 25 35 35 35 35 25 25 25 25 25 25 25 25 25 25 25 25 25 25 25 25 25 25 25 25 25 25 25 25 25 25 25 25 22 Average Carried 24 | . 6 8 16 24 28 35 33 30 24 24 23 24 24 24 24 24 24 23 24 22 24 24 23 24 23 23 23 24 24 23 22 23 24 23 23 23 19 Final Capacity 35 | 8 15 5 25 25 35 35 35 25 25 25 25 25 25 25 25 25 25 25 25 25 25 25 25 25 25 25 25 25 25 25 25 25 25 25 25 25 5 Final Carried 35 | 6 7 5 25 23 35 35 35 25 25 24 25 25 25 25 25 25 25 25 25 25 25 24 25 23 25 25 25 25 25 22 22 23 25 25 25 22 5 Class Distribution -------------------- 39% | Botlord-Mutant 21% | Mutant 12% | Scavenger-Mutant 9% | Hauler-Mutant 4% | Botlord-Skirmisher 4% | Hacker-Mutant Dominant Class ---------------- Mutant | -10/Materials Mutant | -10/Mines Scavenger-Mutant | -9/Materials Mutant | -9/Mines Scavenger-Mutant | -9/Exiles Hauler-Mutant | -8/Mines Hauler-Mutant | -8/Materials Hauler-Mutant | -8/Garrison Mutant | -8/Materials Mutant | -8/Garrison Hacker-Mutant | -7/Factory Scavenger-Mutant | -7/Garrison Scavenger-Mutant | -6/Factory Mutant | -6/Garrison Mutant | -6/Extension Scavenger-Mutant | -6/Cetus Scavenger-Mutant | -6/Archives Hacker-Mutant | -6/Hub_04(d) Botlord-Mutant | -6/Garrison Botlord-Tank | -5/Factory Botlord-Mutant | -5/Garrison Botlord-Mutant | -4/Factory Botlord-Mutant | -4/Garrison Botlord-Mutant | -4/Factory Botlord-Mutant | -4/Armory Botlord-Mutant | -4/Lab Botlord-Mutant | -3/Research Botlord-Mutant | -3/Testing Botlord-Mutant | -3/Garrison Botlord-Mutant | -2/Research Botlord-Mutant | -2/Quarantine Botlord-Mutant | -2/Section 7 Botlord-Mutant | -2/Garrison Botlord-Mutant | -1/Access Commander-Mutant | -1/Garrison Botlord-Mutant | -1/Access Botlord-Mutant | -1/Command Resources | -11 -10 -10 -9 -9 -9 -8 -8 -8 -8 -8 -7 -7 -6 -6 -6 -6 -6 -6 -6 -5 -5 -4 -4 -4 -4 -4 -3 -3 -3 -2 -2 -2 -2 -1 -1 -1 -1 ----------- Run | Jun Mat Min Mat Min Exi Min Mat Gar Mat Gar Fac Gar Fac Gar Ext Cet Arc Hub Gar Fac Gar Fac Gar Fac Arm Lab Res Tes Gar Res Qua Sec Gar Acc Gar Acc Com Matter Collected 17516 | 200 253 20 941 412 190 159 1150 367 255 402 62 331 . 213 142 335 435 1170 788 51 1270 269 1137 145 1536 . 410 512 719 580 744 631 620 . 784 100 183 Remotely 1640 | . . . . 281 137 . 63 . . 105 40 . . . . 80 . 550 . . . . . . . . . 66 91 227 . . . . . . . Salvage Created 29873 | . 644 . 1915 384 240 150 1753 667 691 651 75 1055 . . 28 986 684 1345 1958 405 1255 207 935 188 2559 . 449 1556 1753 1502 1080 2493 1793 . 67 249 156 Parts 1389 | . 43 . 113 16 23 11 86 39 33 49 3 39 . . 3 50 64 63 75 15 81 12 31 8 91 . 12 60 57 70 52 96 72 . 3 18 1 Haulers Intercepted 12 | . 2 . 4 . . . 4 . . . . . . . . . . 2 . . . . . . . . . . . . . . . . . . . Recyclers Shooed 13 | . 2 . 2 1 . . 2 . 3 . . . . . . . . . . 2 . . . . . . . . . . . . . . . . 1 Parts Field Recycled . | . . . . . . . . . . . . . . . . . . . . . . . . . . . . . . . . . . . . . . Retrieved Matter . | . . . . . . . . . . . . . . . . . . . . . . . . . . . . . . . . . . . . . . Parts Self-Destructed . | . . . . . . . . . . . . . . . . . . . . . . . . . . . . . . . . . . . . . . Prevented . | . . . . . . . . . . . . . . . . . . . . . . . . . . . . . . . . . . . . . . Kills | -11 -10 -10 -9 -9 -9 -8 -8 -8 -8 -8 -7 -7 -6 -6 -6 -6 -6 -6 -6 -5 -5 -4 -4 -4 -4 -4 -3 -3 -3 -2 -2 -2 -2 -1 -1 -1 -1 ------- Run | Jun Mat Min Mat Min Exi Min Mat Gar Mat Gar Fac Gar Fac Gar Ext Cet Arc Hub Gar Fac Gar Fac Gar Fac Arm Lab Res Tes Gar Res Qua Sec Gar Acc Gar Acc Com Combat Hostiles Destroyed 478 | . 14 . 40 9 . 3 31 17 14 27 1 19 . . . 16 4 30 29 5 19 3 13 4 41 . 5 20 29 18 12 24 25 . 1 3 2 Melee 5 | . . . . . . . . . . 1 . . . . . . . . . . . . . . . . . . . . . 3 . . . . 1 Guns 132 | . 10 . 30 9 . 3 31 . . . . . . . . . . 2 17 5 8 . 6 1 3 . . 4 . . 3 . . . . . . Cannons 202 | . 4 . 7 . . . . 11 9 7 1 2 . . . 1 2 28 . . . . 2 3 34 . 1 13 11 15 8 16 23 . 1 3 . AOE 73 | . . . 3 . . . . 6 4 19 . 8 . . . 11 . . 2 . 8 3 3 . . . . . 6 . . . . . . . . Classes Destroyed 24 | . 6 . 4 . . 1 4 1 . . . 1 . . . . . 1 . . 1 . . . 2 . . 2 . . . 1 . . . . . Worker 16 | . 3 . 1 1 . . 2 . . . . . . . 1 . . 3 . . . . . . . . 1 2 . . 1 1 . . . . . Builder 13 | . . . . . . . 2 . 4 . . . . . 1 . . 2 . . . . . . . . . . . 1 2 1 . . . . . Tunneler 2 | . . . . . . 1 1 . . . . . . . . . . . . . . . . . . . . . . . . . . . . . . Hauler 12 | . 2 . 4 . . . 4 . . . . . . . . . . 2 . . . . . . . . . . . . . . . . . . . Recycler 3 | . . . . . . . 1 . . . . . . . . . . 1 . . . 1 . . . . . . . . . . . . . . . Operator 15 | . 1 . 2 . . . . . . . . . . . . . 9 . . . . . . . . . 1 1 . . 1 . . . . . . Watcher 22 | . 2 . 3 . . . 1 . 2 . . . . . . . . 3 . . . . . . . . 1 2 . 4 3 . . . . 1 . Swarmer 94 | . 3 . 7 . . . 7 4 4 12 . 2 . . . 5 . 8 . . 9 3 4 2 5 . . . 11 2 . . 6 . . . . Cutter 4 | . . . . . . . . 1 . . . . . . . . . . . . 3 . . . . . . . . . . . . . . . . Saboteur 1 | . . . . . . . . . . . . . . . . . . . . . . . . . 1 . . . . . . . . . . . . Grunt 198 | . 11 . 23 8 . 2 14 8 5 9 . 14 . . . 6 . 9 20 3 2 . 4 . 15 . 5 6 13 2 . 11 8 . . . . Brawler 10 | . . . 1 . . . . . . 2 . 2 . . . . . . . 2 . . . . 1 . . . 2 . . . . . . . . Duelist 9 | . . . 1 1 . 1 1 . . 1 . . . . . . . . 1 . . . 2 . . . . . . . . . 1 . . . . Protector 1 | . . . 1 . . . . . . . . . . . . . . . . . . . . . . . . . . . . . . . . . . Researcher 8 | . . . . . . . . . . . . . . . . . . . . . . . . . . . . 1 . . . 7 . . . . . Sentry 47 | . . . 7 . . . 4 2 2 2 1 1 . . . . 4 6 3 . . . 1 1 5 . . 2 2 1 . 2 1 . . . . Demolisher 1 | . . . . . . . . . . . . . . . . . . . . . . . . . 1 . . . . . . . . . . . . Specialist 10 | . . . . . . . 4 1 . . . . . . . . . 2 . . 1 . . . 1 . . . . 1 . . . . . . . Hunter 45 | . . . . . . . 1 2 3 1 . . . . . . . 3 3 . 4 . . . 1 . . 5 . 4 6 7 4 . . . 1 Programmer 48 | . . . . . . . . . . . . 1 . . . . . 1 2 . . . . 1 12 . . 7 . 7 6 3 4 . 1 3 . Heavy 1 | . . . . . . . . . . . . . . . . . . 1 . . . . . . . . . . . . . . . . . . . Q-Series 3 | . . . . . . . . . . . . . . . . . . . . . . . . . . . . 1 . 2 . . . . . . . Behemoth 5 | . . . . . . . . . . . . . . . . . . . . . 1 . 2 . . . . . 1 . . . 1 . . . . Cetus Guard 5 | . . . . . . . . . . . . . . . . 5 . . . . . . . . . . . . . . . . . . . . . Combat Programmer 1 | . . . . . . . . . . . . . . . . . . . . . . . . . . . . . . . . . . . . . 1 Executioner 1 | . . . . . . . . . . . . . . . . . . . . . . . . . . . . . . . . 1 . . . . . Best Kill Streak 8 | . 6 . 6 3 . 3 5 4 6 7 1 8 . . 1 6 2 7 5 2 4 3 3 3 7 . 4 6 7 6 3 7 4 . 1 4 1 Combat Bots Only 8 | . 3 . 5 3 . 3 4 4 4 7 1 8 . . . 6 1 7 5 2 4 3 3 3 7 . 4 3 7 3 3 7 4 . 1 3 1 Max Kills in Single Turn 3 | . 1 . 2 1 . 1 1 2 3 3 1 2 . . 1 3 1 1 1 1 2 3 2 1 1 . 1 2 2 1 1 1 1 . 1 1 1 Gunslinging . | . . . . . . . . . . . . . . . . . . . . . . . . . . . . . . . . . . . . . . Exploded 3 | . . . 2 . . . . 1 3 3 . 1 . . . 3 . . 1 . 2 3 2 . . . . . 2 . . . . . . . . Melee 1 | . . . . . . . . . . 1 . . . . . . . . . . . . . . . . . . . . . 1 . . . . 1 Uniques/NPCs Destroyed 1 | . . . . . . . . . . . . . . . . 1 . . . . . . . . . . . . . . . . . . . . . A7 (-6/Cetus) Combat | -11 -10 -10 -9 -9 -9 -8 -8 -8 -8 -8 -7 -7 -6 -6 -6 -6 -6 -6 -6 -5 -5 -4 -4 -4 -4 -4 -3 -3 -3 -2 -2 -2 -2 -1 -1 -1 -1 -------- Run | Jun Mat Min Mat Min Exi Min Mat Gar Mat Gar Fac Gar Fac Gar Ext Cet Arc Hub Gar Fac Gar Fac Gar Fac Arm Lab Res Tes Gar Res Qua Sec Gar Acc Gar Acc Com Damage Taken 44271 | . 720 363 1621 503 . 123 2285 1191 685 898 151 1027 . 576 509 635 610 2992 2328 331 1564 137 1250 714 4750 . 182 1420 1810 2228 2733 5150 1794 . 207 305 2479 Core 3561 | . 43 196 271 102 . . 189 167 38 109 29 99 . 86 13 30 72 261 201 . 132 14 90 56 437 . 18 46 83 21 211 154 53 . . . 340 Absorbed by Shields 1647 | . . . 158 133 . 35 179 26 . . . . . . . 51 . . . 203 56 . . . . . 23 92 105 45 . . . . 200 204 137 Reduced by Siege Mode 2614 | . . . . . . . . . . . . . . . . . 47 183 264 28 111 . 96 . 463 . . 65 148 274 229 559 141 . . 6 . Redirected to Shielding 43 | . . . . . . . . . . . . . . . . . . . 18 . . . . . 25 . . . . . . . . . . . . Regen/Repaired (Parts) 12547 | . . . . . . . . . . . 369 . . . . . . . . . . . 330 33 28 . . 533 696 970 1301 4290 2753 10 154 146 934 Core Remaining (%) 51 | 100 . 4 . . . 6 . . . 8 . 81 . . . . . . 22 . 86 . . . . 48 . . 88 . . . 45 . . . 78 Volleys Fired 2253 | . 71 . 116 32 19 8 145 52 38 49 4 44 . 6 18 51 144 114 73 29 131 28 85 36 146 11 23 65 75 95 74 155 137 11 86 19 63 Largest 3 | . 2 . 2 2 1 2 2 2 2 2 2 2 . 1 2 1 2 2 2 3 3 2 3 2 3 1 1 3 3 2 2 1 1 1 1 1 1 Hottest 300 | . 90 . 131 46 20 46 110 150 150 150 144 150 . 85 160 240 160 165 165 200 200 153 233 155 275 120 100 248 200 240 300 120 120 120 120 120 120 Shots Fired 3286 | . 139 . 226 66 23 18 290 81 73 75 7 57 . 6 19 52 158 142 122 77 174 33 148 53 284 12 23 113 112 136 101 152 137 11 86 19 61 Gun 1158 | . 111 . 187 66 4 18 290 . . . . . . . . 1 . 16 91 72 79 6 79 16 73 1 . 27 3 . 18 . . . . . . Cannon 1476 | . 28 . 36 . . . . 69 69 56 7 27 . 6 3 6 37 125 7 5 2 6 31 29 172 11 23 84 94 125 61 146 117 1 29 9 55 Launcher 158 | . . . 3 . . . . 12 4 19 . 30 . . 1 22 6 . 22 . 17 3 11 . . . . . 8 . . . . . . . . Special 494 | . . . . . 19 . . . . . . . . . 15 23 115 1 2 . 76 18 27 8 39 . . 2 7 11 22 6 20 10 57 10 6 Kinetic 769 | . 65 . 102 66 4 18 220 . . . . . . . . . . 82 . 24 27 6 40 16 67 . . 14 . . 18 . . . . . . Thermal 1927 | . 74 . 121 . 19 . 70 69 50 44 2 27 . 6 3 30 152 60 98 53 102 6 70 29 168 12 23 84 21 116 61 146 117 1 29 9 55 Explosive 37 | . . . . . . . . 5 4 19 . . . . 1 . . . . . . . . . . . . . 8 . . . . . . . . Electromagnetic 265 | . . . 3 . . . . 7 19 12 5 30 . . . 22 6 . 22 . 17 3 11 . 10 . . 13 76 9 . . . . . . . Robot Hit Streak 44 | . 16 . 14 10 13 6 11 5 12 10 5 3 . . 12 12 19 17 25 32 33 5 18 26 41 . 13 16 39 19 15 24 37 14 40 44 25 Robot Miss Streak 6 | . 4 . 3 3 2 2 6 4 3 2 1 5 . . 1 4 4 2 1 4 2 4 3 3 5 . . 1 3 2 4 3 4 . 1 1 1 Penetration Max 2 | . . . . . . . . . . . . . . . . . . . . 1 1 . . . 1 . . . . . 2 . . . . . . Secondary Targets 16 | . . . 2 3 . . 3 . . . . . . . . . . . 6 . 1 . 1 . . . . . . . . . . . . . . Max Gunslinging Chain 1 | . . . 1 1 . . 1 . . . . . . . . . . . 1 . 1 . 1 . . . . . . . . . . . . . . Capacitor 330 | . . . . . . . . . . . . . . . . . . . . . . . . . . . . . . . 4 139 117 1 5 9 55 Shots Hit Robots 2111 | . 80 . 155 45 18 10 184 39 53 42 5 13 . . 16 24 125 99 77 52 117 17 103 31 188 . 4 75 69 78 72 129 85 9 41 11 45 Core Hits 971 | . 37 . 63 17 8 5 73 39 25 38 2 29 . . 4 52 50 44 49 21 56 7 28 6 63 . 5 38 45 27 29 51 39 . 2 4 15 Critical Kills 38 | . . . . . . . . . . . . 1 . . . . . . 5 2 3 1 1 . 2 . 4 3 1 3 5 5 1 . . . 1 Critical Parts Destroyed 28 | . . . . 1 . 1 1 . . 1 . . . . . . . . 4 8 6 . 3 . 2 . . . . . 1 . . . . . . Critical Strikes 105 | . 3 . 3 1 . 1 4 . . 1 . 1 . . . 1 4 7 11 12 11 1 5 . 4 . 4 10 4 4 6 5 1 . . . 1 Burn 10 | . 2 . 3 . . . 3 . . . . . . . . . . . . . . . . . . . . 2 . . . . . . . . . Meltdown 24 | . . . . . . . . . . . . 1 . . . . . . . . . . . . 2 . 4 3 1 3 3 5 1 . . . 1 Destroy 48 | . . . . 1 . 1 1 . . . . . . . . . . . 11 12 11 1 5 . 2 . . . . . 3 . . . . . . Blast 12 | . 1 . . . . . . . . . . . . . . . . 7 . . . . . . . . . 4 . . . . . . . . . Corrupt 5 | . . . . . . . . . . . . . . . . . . . . . . . . . . . . 1 3 1 . . . . . . . Smash 1 | . . . . . . . . . . 1 . . . . . . . . . . . . . . . . . . . . . . . . . . . Sever 5 | . . . . . . . . . . . . . . . . 1 4 . . . . . . . . . . . . . . . . . . . . Melee Attacks 66 | . . . . . . . . 4 6 15 2 1 . . . . . . . . . . . . . . . . . . . 31 . . 1 6 . Impact 24 | . . . . . . . . 4 2 15 2 1 . . . . . . . . . . . . . . . . . . . . . . . . . Slashing 38 | . . . . . . . . . . . . . . . . . . . . . . . . . . . . . . . . 31 . . 1 6 . Piercing . | . . . . . . . . . . . . . . . . . . . . . . . . . . . . . . . . . . . . . . Sneak Attacks 6 | . . . . . . . . . 4 . . . . . . . . . . . . . . . . . . . . . . 2 . . . . . Combat Hostiles . | . . . . . . . . . . . . . . . . . . . . . . . . . . . . . . . . . . . . . . Follow-up Attacks . | . . . . . . . . . . . . . . . . . . . . . . . . . . . . . . . . . . . . . . Damage Inflicted 72507 | . 1084 . 2821 787 216 200 3117 1594 1760 2427 123 1725 . . 166 2161 2010 6005 3566 1016 2161 332 2484 858 6997 . 1124 4976 4114 4002 3188 6251 3828 . 265 339 810 Guns 15292 | . 762 . 2107 758 16 200 3117 . . . . . . . . . . 235 1663 1016 1041 25 1225 242 1382 . . 754 59 . 690 . . . . . . Cannons 43191 | . 313 . 527 . . . . 1000 1403 785 123 206 . . 25 122 906 5580 120 . . 78 754 616 5560 . 1124 4222 2925 4002 2498 5089 3828 . 265 339 781 Explosions 10388 | . . . 140 . . . . 594 281 1522 . 1519 . . 39 1871 120 62 1783 . 602 220 505 . . . . . 1130 . . . . . . . . Melee 1269 | . . . . . . . . . . 120 . . . . . . . . . . . . . . . . . . . . . 1149 . . . . . Ramming 489 | . 9 . 47 29 . . . . 76 . . . . . 102 . . 118 . . 2 9 . . 55 . . . . . . 13 . . . . 29 Kinetic 14133 | . 464 . 1060 758 16 200 2240 . . . . . . . . . . 4888 . 145 180 25 513 242 1177 . . 1535 . . 690 . . . . . . Thermal 43229 | . 611 . 1574 . 200 . 877 1000 925 725 25 260 . . 25 1219 1890 937 1816 871 1377 190 1553 616 5414 . 1124 2952 540 3708 2498 5089 3828 . 265 339 781 Explosive 3394 | . . . . . . . . 422 281 1522 . . . . 39 . . . . . . . . . . . . . 1130 . . . . . . . . Electromagnetic 9993 | . . . 140 . . . . 172 478 60 98 1465 . . . 942 120 62 1750 . 602 108 418 . 351 . . 489 2444 294 . . . . . . . Impact 120 | . . . . . . . . . . 120 . . . . . . . . . . . . . . . . . . . . . . . . . . . Slashing 1149 | . . . . . . . . . . . . . . . . . . . . . . . . . . . . . . . . 1149 . . . . . Piercing . | . . . . . . . . . . . . . . . . . . . . . . . . . . . . . . . . . . . . . . Highest Corruption 47 | . 1 1 . 8 8 8 1 1 1 1 . 20 . . . 47 47 22 26 12 20 . . 3 19 19 . 5 5 5 12 9 13 . . 2 8 Average Corruption 10 | . 1 1 . 8 8 8 1 1 1 1 . 16 . . . 30 31 9 24 11 19 . . 2 13 19 . 2 5 3 8 8 10 . . 1 2 Corruption Purged 53 | . . . . . . . . . . . . . . . . . 42 . . . . . . . . . . . . 5 6 . . . . . . Corruption Blocked . | . . . . . . . . . . . . . . . . . . . . . . . . . . . . . . . . . . . . . . Effects 1071 | . 2 4 . 18 74 26 1 11 6 13 . 43 . . . 17 103 61 95 5 153 . . 11 101 21 . 17 30 26 65 71 77 . . 3 17 Message Errors 273 | . 1 2 . 6 19 10 1 1 1 1 . 13 . . . 7 35 13 20 2 34 . . 1 24 6 . 5 3 7 14 18 22 . . 2 5 Matter Fused 244 | . 1 . . 4 18 2 . 6 1 2 . 10 . . . 2 21 14 24 . 37 . . 4 26 4 . 3 11 3 17 14 17 . . . 3 Heat Flow Errors 128 | . . 1 . . 7 3 . . 1 2 . 4 . . . 2 13 7 12 . 24 . . 2 12 4 . 1 6 3 6 7 10 . . . 1 Energy Discharges 109 | . . 1 . 3 8 5 . 2 . 1 . 5 . . . 3 6 7 10 1 14 . . 2 4 1 . 3 3 5 7 7 9 . . . 2 Parts Rejected 11 | . . . . . . . . . . . . . . . . 1 . 1 . . 4 . . . 3 . . . . . . 1 . . . 1 . Parts Fused 12 | . . . . . 1 . . . . . . . . . . . . . 1 . 4 . . . 1 . . 1 . . 1 2 1 . . . . Data Loss (minor) 121 | . . . . 1 13 2 . . 1 4 . 2 . . . . 9 9 14 2 17 . . . 11 2 . 1 2 4 10 9 7 . . . 1 Data Loss (major) 39 | . . . . . 2 1 . 1 . 1 . 3 . . . 1 6 2 2 . 8 . . 1 2 . . 1 1 . 1 3 3 . . . . Misfires 63 | . . . . 3 4 2 . 1 2 1 . 4 . . . 1 3 5 5 . 5 . . 1 8 2 . 2 2 2 3 3 3 . . . 1 Alerts 23 | . . . . . 2 1 . . . . . 1 . . . . 2 1 2 . 2 . . . 2 1 . . . . 4 1 3 . . . 1 Misdirections 2 | . . . . . . . . . . . . . . . . . . 1 1 . . . . . . . . . . . . . . . . . . Weapon Failures 46 | . . . . 1 . . . . . 1 . 1 . . . . 8 1 4 . 4 . . . 8 1 . . 2 2 2 6 2 . . . 3 Overload Shots 1 | . . . . . . . . . . . . . . . . 1 . . . . . . . . . . . . . . . . . . . . . Overflow Damage 2898 | . 5 . . . . . . . 23 116 . 6 . . . 25 13 538 43 . . 6 76 31 218 . 168 512 34 315 375 238 127 . . 29 . Projectiles 2592 | . 5 . . . . . . . 23 10 . . . . . 8 13 538 . . . . 39 31 218 . 168 512 25 315 375 156 127 . . 29 . Explosions 167 | . . . . . . . . . . 49 . 6 . . . 17 . . 43 . . 6 37 . . . . . 9 . . . . . . . . Melee 139 | . . . . . . . . . . 57 . . . . . . . . . . . . . . . . . . . . . 82 . . . . . Knockbacks 42 | . 6 . . . . . . . 1 . . . . . . . . 29 . . . . . . . . . 5 . . . . . . . . 1 Impact 3 | . . . . . . . . . 1 . . . . . . . . 1 . . . . . . . . . . . . . . . . . . 1 Kinetic 35 | . 6 . . . . . . . . . . . . . . . . 24 . . . . . . . . . 5 . . . . . . . . . Secondary 4 | . . . . . . . . . . . . . . . . . . 4 . . . . . . . . . . . . . . . . . . . Self-Inflicted Damage 651 | . . . . . . . . 100 49 75 . 93 . . . 1 . 94 105 . 111 . 23 . . . . . . . . . . . . . . Shots 34 | . . . . . . . . 4 2 4 . 6 . . . 1 . 1 7 . 6 . 3 . . . . . . . . . . . . . . Rammed 49 | . 3 . 21 3 . 1 . . 5 . . . . . 4 . . 6 . . 1 1 . . 1 . . . . . . 1 . . . . 2 Targets Rammed 54 | . 3 . 21 4 . 2 . . 6 . . . . . 4 . . 7 . . 1 1 . . 1 . . . . . . 1 . . . . 3 Kicked . | . . . . . . . . . . . . . . . . . . . . . . . . . . . . . . . . . . . . . . Crushed 5 | . . . . 1 . 1 . . 1 . . . . . . . . 1 . . . . . . . . . . . . . . . . . . 1 Highest Temperature 624 | . 375 109 120 27 227 171 155 357 306 476 194 208 . 30 69 260 438 462 345 329 312 99 386 273 624 237 5 261 178 97 116 264 402 89 329 . 23 Average Temperature 100 | . 128 54 17 7 86 50 43 139 101 129 95 61 . 14 31 83 120 117 119 132 91 33 129 37 142 79 5 70 91 57 44 79 103 59 87 . 14 Received Heat Transfer 7583 | . 360 20 369 184 . 83 630 501 279 369 . 339 . 57 63 123 54 555 636 57 171 . 236 45 911 . 27 180 425 72 27 405 162 . 24 8 211 Effects 39 | . 4 . . . . . . 4 . 1 . . . . . . 1 4 2 . . . 4 . 17 . . . . . . . 2 . . . . Shutdowns 13 | . 1 . . . . . . . . 1 . . . . . . 1 2 . . . . 2 . 5 . . . . . . . 1 . . . . Energy Bleed 6 | . . . . . . . . . . . . . . . . . . 1 2 . . . 1 . 2 . . . . . . . . . . . . Interference 14 | . 3 . . . . . . 4 . . . . . . . . . 1 . . . . . . 6 . . . . . . . . . . . . Matter Decay 3 | . . . . . . . . . . . . . . . . . . . . . . . 1 . 1 . . . . . . . 1 . . . . Damage (major) 3 | . . . . . . . . . . . . . . . . . . . . . . . . . 3 . . . . . . . . . . . . Siege Activations 124 | . . . . . . . . . . . . . . . . . 3 18 11 2 11 1 10 1 11 . 1 7 6 9 8 10 11 . 2 1 1 Total Turns 1800 | . . . . . . . . . . . . . . . . . 57 177 158 71 175 13 144 5 230 . 2 87 105 146 98 175 94 . 32 7 24 Longest Duration 57 | . . . . . . . . . . . . . . . . . 24 37 26 55 52 13 26 5 57 . 2 27 28 35 28 48 15 . 19 7 24 Robots Corrupted 40 | . . . . . . . . . . . . 8 . . . 4 1 . 9 . 2 . 2 . . . . 1 11 2 . . . . . . . Combat Hostiles 40 | . . . . . . . . . . . . 8 . . . 4 1 . 9 . 2 . 2 . . . . 1 11 2 . . . . . . . Parts Fried 81 | . . . . . . . . . 4 1 1 8 . . . 1 1 3 10 . 7 . 5 . 3 . . 4 30 3 . . . . . . . Impact Corruptions 5 | . . . . . . . . . . 2 . . . . . . . 3 . . . . . . . . . . . . . . . . . . . Robots Melted 31 | . . . . . . . . . 1 . . 1 . . . . 1 . 1 . 1 . . . 4 . 4 3 1 3 3 5 2 . . . 1 Combat Hostiles 26 | . . . . . . . . . 1 . . 1 . . . . 1 . 1 . 1 . . . 4 . 4 2 1 1 1 5 2 . . . 1 Parts Melted 131 | . 3 . 13 . . . 6 3 1 1 . . . . . . 3 4 12 2 4 . 2 1 20 . 5 9 3 9 6 17 6 . . 1 . Heat Transferred 50086 | . 1793 . 3367 . 657 . 1924 1480 1369 1073 37 346 . . 37 1430 4477 1332 2640 1002 2975 174 1807 518 4431 . 740 2766 370 2997 1517 4494 3070 . 127 259 877 Parts Sabotaged . | . . . . . . . . . . . . . . . . . . . . . . . . . . . . . . . . . . . . . . Parts Stolen . | . . . . . . . . . . . . . . . . . . . . . . . . . . . . . . . . . . . . . . Parts Stripped . | . . . . . . . . . . . . . . . . . . . . . . . . . . . . . . . . . . . . . . Power Chain Reactions 18 | . . . . . . . . 2 . . . 1 . . . 7 . . 1 . 2 2 3 . . . . . . . . . . . . . . Missiles Intercepted 12 | . . . . . . . . . . . . . . . . . . . . . . . . . . . . . . . . . . . . . 12 Alert | -11 -10 -10 -9 -9 -9 -8 -8 -8 -8 -8 -7 -7 -6 -6 -6 -6 -6 -6 -6 -5 -5 -4 -4 -4 -4 -4 -3 -3 -3 -2 -2 -2 -2 -1 -1 -1 -1 ------- Run | Jun Mat Min Mat Min Exi Min Mat Gar Mat Gar Fac Gar Fac Gar Ext Cet Arc Hub Gar Fac Gar Fac Gar Fac Arm Lab Res Tes Gar Res Qua Sec Gar Acc Gar Acc Com Peak Influence 1880 | . 257 58 650 258 . 119 312 946 573 983 540 642 336 608 570 314 193 321 813 487 1450 1015 1629 968 550 . 108 237 1008 567 248 617 1387 832 1880 1637 1257 Initial 1128 | . . 58 16 148 . . 11 202 460 128 515 255 336 251 319 29 96 . 51 426 253 760 710 854 380 . . . 104 567 165 33 406 832 206 1128 914 Average 451 | . 110 50 289 68 . 53 138 574 458 645 438 523 336 358 232 183 41 133 463 405 737 725 1176 779 386 . 19 78 539 165 114 410 890 298 1157 1384 1047 Maximum Alert Level 5 | . 1 . 2 1 . . 1 3 2 3 2 2 1 2 2 1 . 1 3 2 4 3 5 3 2 . . 1 3 2 1 2 4 3 5 5 4 Low Security (%) 34 | . 88 100 36 88 . 100 66 . 7 7 . . . . 58 37 100 68 11 . . . . . . . 100 99 4 73 93 20 . . . . . Level 1 21 | . 11 . 39 11 . . 33 35 19 12 49 18 100 73 16 62 . 31 20 29 19 . . . 67 . . . 31 23 6 16 . 88 12 . . Level 2 21 | . . . 23 . . . . 25 73 30 50 81 . 26 24 . . . 60 70 36 35 . 33 32 . . . 30 3 . 62 33 2 4 . . Level 3 13 | . . . . . . . . 38 . 48 . . . . . . . . 7 . 23 64 39 66 . . . . 33 . . . 40 9 28 . 76 Level 4 7 | . . . . . . . . . . . . . . . . . . . . . 21 . 58 . . . . . . . . . 26 . 34 74 23 Level 5 1 | . . . . . . . . . . . . . . . . . . . . . . . 1 . . . . . . . . . . . 20 25 . High Security . | . . . . . . . . . . . . . . . . . . . . . . . . . . . . . . . . . . . . . . Max Security . | . . . . . . . . . . . . . . . . . . . . . . . . . . . . . . . . . . . . . . Squads Dispatched 94 | . 3 . 7 1 . . 6 . 5 . 1 . 1 . 2 1 . 7 . 3 . 3 . 3 9 . 1 9 . 5 7 14 . 1 . 4 1 Investigation 20 | . 2 . 5 1 . . 2 . 2 . 1 . 1 . . . . 3 . 1 . . . . . . . 1 . . . . . 1 . . . Extermination 25 | . . . . . . . . . . . . . . . . . . 1 . . . 2 . 1 5 . . 4 . 4 3 3 . . . 1 1 Reinforcement 33 | . 1 . 1 . . . 4 . 3 . . . . . 2 . . 3 . 1 . . . 2 1 . 1 2 . 1 4 6 . . . 1 . Assault 10 | . . . 1 . . . . . . . . . . . . 1 . . . 1 . 1 . . 3 . . . . . . 1 . . . 2 . Garrison 5 | . . . . . . . . . . . . . . . . . . . . . . . . . . . . 2 . . . 3 . . . . . Intercept 1 | . . . . . . . . . . . . . . . . . . . . . . . . . . . . . . . . 1 . . . . . Searches Triggered . | . . . . . . . . . . . . . . . . . . . . . . . . . . . . . . . . . . . . . . Construction Impeded 3 | . . . . . . . . . 1 . . . . . 1 . . . . . . . . . . . . . . . . . . . . 1 . Haulers Reinforced 3 | . . . . . . . . . . . . . . . . . . . . 1 . . . . . . . . . . 2 . . . . . . Active Scanning Responses . | . . . . . . . . . . . . . . . . . . . . . . . . . . . . . . . . . . . . . . Cargo Convoy Interrupts . | . . . . . . . . . . . . . . . . . . . . . . . . . . . . . . . . . . . . . . Stealth | -11 -10 -10 -9 -9 -9 -8 -8 -8 -8 -8 -7 -7 -6 -6 -6 -6 -6 -6 -6 -5 -5 -4 -4 -4 -4 -4 -3 -3 -3 -2 -2 -2 -2 -1 -1 -1 -1 --------- Run | Jun Mat Min Mat Min Exi Min Mat Gar Mat Gar Fac Gar Fac Gar Ext Cet Arc Hub Gar Fac Gar Fac Gar Fac Arm Lab Res Tes Gar Res Qua Sec Gar Acc Gar Acc Com Distress Signals 39 | . 3 . 4 . . . 5 1 7 . . . . . 1 2 . 4 . . . . . 2 2 . 7 . . . . . . . . 1 . Communications Jammed 785 | . . . . . . . . . . . . . . . . . . . . . . 7 33 19 67 . . . . 16 18 14 . . . 345 266 Distress Signals 784 | . . . . . . . . . . . . . . . . . . . . . . 7 33 19 67 . . . . 15 18 14 . . . 345 266 Times Spotted 1009 | . 27 8 53 10 . 7 52 22 22 25 1 25 . 20 28 23 110 46 32 11 32 27 37 29 63 . 11 27 36 33 25 44 34 . 55 14 20 Peak Tracking Total 11 | . 6 5 5 3 . 3 6 4 5 7 1 6 . 3 5 8 1 8 5 6 6 5 5 6 8 . 5 5 5 5 5 9 7 . 11 5 4 Tactical Retreats 35 | . 1 2 2 . . . 1 1 2 1 . 2 . . . . . 4 2 2 1 . 3 . 1 . . . 2 1 3 2 1 . 1 . . Traps | -11 -10 -10 -9 -9 -9 -8 -8 -8 -8 -8 -7 -7 -6 -6 -6 -6 -6 -6 -6 -5 -5 -4 -4 -4 -4 -4 -3 -3 -3 -2 -2 -2 -2 -1 -1 -1 -1 ------- Run | Jun Mat Min Mat Min Exi Min Mat Gar Mat Gar Fac Gar Fac Gar Ext Cet Arc Hub Gar Fac Gar Fac Gar Fac Arm Lab Res Tes Gar Res Qua Sec Gar Acc Gar Acc Com Traps Triggered 64 | . 2 . 3 . . . 3 11 1 . . 8 . 2 3 . . . 3 . 5 . 2 1 1 . 2 1 5 2 . . 2 . 5 . 2 Indirectly 8 | . . . . . . . . . . . . 5 . . . . . . 1 . . . 2 . . . . . . . . . . . . . . Trap Hack Attempts . | . . . . . . . . . . . . . . . . . . . . . . . . . . . . . . . . . . . . . . Triggered . | . . . . . . . . . . . . . . . . . . . . . . . . . . . . . . . . . . . . . . Disarmed . | . . . . . . . . . . . . . . . . . . . . . . . . . . . . . . . . . . . . . . Reprogrammed . | . . . . . . . . . . . . . . . . . . . . . . . . . . . . . . . . . . . . . . Reused . | . . . . . . . . . . . . . . . . . . . . . . . . . . . . . . . . . . . . . . Traps Extracted . | . . . . . . . . . . . . . . . . . . . . . . . . . . . . . . . . . . . . . . Installed . | . . . . . . . . . . . . . . . . . . . . . . . . . . . . . . . . . . . . . . Triggered 1 | . . . . . . . . . . . . 1 . . . . . . . . . . . . . . . . . . . . . . . . . Machines | -11 -10 -10 -9 -9 -9 -8 -8 -8 -8 -8 -7 -7 -6 -6 -6 -6 -6 -6 -6 -5 -5 -4 -4 -4 -4 -4 -3 -3 -3 -2 -2 -2 -2 -1 -1 -1 -1 ---------- Run | Jun Mat Min Mat Min Exi Min Mat Gar Mat Gar Fac Gar Fac Gar Ext Cet Arc Hub Gar Fac Gar Fac Gar Fac Arm Lab Res Tes Gar Res Qua Sec Gar Acc Gar Acc Com Machines Disabled 102 | . . . 4 . . 1 . 2 . 5 . 1 . 3 1 1 2 12 3 3 2 . 3 13 7 3 . 5 4 . 5 8 6 . 7 . 1 Max in Single Turn 7 | . . . 1 . . . . 1 . 1 . 1 . 1 1 1 1 7 1 1 1 . 1 . 1 1 . 1 1 . 1 1 1 . 1 . . Garrison Access 3 | . . . . . . . . . . . . . . . . . . . . . . . . . . . . . . 2 1 . . . . . . Garrison Relay 23 | . . . . . . . . 1 . 3 . 1 . 1 . . . . 2 . 2 . 2 . . . . . 2 . . . 4 . 5 . . Network Hub 3 | . . . . . . . . . . . . . . . . . . 3 . . . . . . . . . . . . . . . . . . . Machines Repaired 1 | . . . . . . . . . . . . . . . . . . 1 . . . . . . . . . . . . . . . . . . . Machines Sabotaged . | . . . . . . . . . . . . . . . . . . . . . . . . . . . . . . . . . . . . . . Overloaded Fab Kills . | . . . . . . . . . . . . . . . . . . . . . . . . . . . . . . . . . . . . . . Hacking | -11 -10 -10 -9 -9 -9 -8 -8 -8 -8 -8 -7 -7 -6 -6 -6 -6 -6 -6 -6 -5 -5 -4 -4 -4 -4 -4 -3 -3 -3 -2 -2 -2 -2 -1 -1 -1 -1 --------- Run | Jun Mat Min Mat Min Exi Min Mat Gar Mat Gar Fac Gar Fac Gar Ext Cet Arc Hub Gar Fac Gar Fac Gar Fac Arm Lab Res Tes Gar Res Qua Sec Gar Acc Gar Acc Com Machines Accessed 97 | . 8 . 5 2 2 . 3 3 2 2 2 2 1 2 4 1 . 10 3 2 2 1 2 3 3 . 1 5 2 2 10 4 3 3 1 . 1 Terminals 68 | . 6 . 3 . . . 2 3 1 2 . 2 . 2 4 1 . 9 3 . 2 . 2 3 2 . 1 2 2 . 7 2 3 2 1 . 1 Fabricators 2 | . . . . . . . . . . . . . . . . . . . . 1 . . . . . . . 1 . . . . . . . . . Repair Stations 6 | . . . . . . . . . . . 1 . . . . . . . . . . . . . 1 . . 1 . . 2 1 . . . . . Recycling Units 4 | . 2 . 2 . . . . . . . . . . . . . . . . . . . . . . . . . . . . . . . . . . Scanalyzers . | . . . . . . . . . . . . . . . . . . . . . . . . . . . . . . . . . . . . . . Garrison Access 13 | . . . . . . . 1 . 1 . 1 . 1 . . . . 1 . 1 . 1 . . . . . 1 . 2 1 1 . 1 . . . Total Hacks 289 | . 17 . 19 2 2 . 7 4 6 4 11 2 2 3 11 3 . 29 4 4 8 1 4 22 17 . 5 15 7 10 36 10 10 10 3 . 1 Successful 132 | . 8 . 11 2 2 . 4 2 6 2 10 2 2 2 5 . . 14 3 2 2 1 2 7 4 . 2 7 1 4 11 7 3 2 1 . 1 Failed 156 | . 9 . 7 . . . 3 2 . 2 1 . . 1 6 3 . 15 1 2 6 . 2 15 13 . 3 8 6 6 25 3 7 8 2 . . Catastrophic 39 | . 4 . 2 . . . . . . . . . . . 1 2 . 4 . 1 . . . 3 2 . 1 1 3 1 9 . 2 3 . . . Database Lockouts 1 | . . . 1 . . . . . . . . . . . . . . . . . . . . . . . . . . . . . . . . . . Manual 143 | . 21 . 18 . 1 . 2 . 5 . 1 . 1 . 5 . . 22 . 3 . . . 20 4 . 4 8 . 7 10 4 . 7 . . . Terminals 205 | . 15 . 17 . . . 5 4 4 4 . 2 . 3 11 3 . 27 4 . 8 . 4 22 10 . 5 9 7 . 19 2 10 6 3 . 1 Fabricators 2 | . . . . . . . . . . . . . . . . . . . . 1 . . . . . . . 1 . . . . . . . . . Repair Stations 37 | . . . . . . . . . . . 9 . . . . . . . . . . . . . 7 . . 2 . . 16 3 . . . . . Recycling Units 4 | . 2 . 2 . . . . . . . . . . . . . . . . . . . . . . . . . . . . . . . . . . Scanalyzers . | . . . . . . . . . . . . . . . . . . . . . . . . . . . . . . . . . . . . . . Garrison Access 37 | . . . . . . . 2 . 2 . 2 . 2 . . . . 2 . 3 . 1 . . . . . 3 . 10 1 5 . 4 . . . Terminal Hacks 62 | . 6 . 6 2 2 . 1 2 1 2 . 2 . 2 5 . . 7 3 . 2 . 2 4 1 . . . 1 . 4 2 3 . 1 . 1 Record 2 | . . . . . 1 . . . . . . . . . . . . . . . . . . . . . . . . . 1 . . . . . . Part Schematic 1 | . 1 . . . . . . . . . . . . . . . . . . . . . . . . . . . . . . . . . . . . Robot Analysis 5 | . 4 . 1 . . . . . . . . . . . . . . . . . . . . . . . . . . . . . . . . . . Prototype ID Bank 5 | . . . 3 . . . 1 . 1 . . . . . . . . . . . . . . . . . . . . . . . . . . . . Open Door 12 | . . . . 2 . . . 1 . . . . . 1 2 . . . . . 1 . . . . . . . . . 1 2 1 . . . 1 Branch Access Points 2 | . . . . . . . . . . . . . . . . . . . . . . . . 1 . . . . . . 1 . . . . . . Emergency Access Points 9 | . . . . . . . . . . 1 . 1 . 1 . . . . 1 . 1 . 1 . . . . . 1 . . . 1 . 1 . . Terminal Index 2 | . . . . . . . . . . . . . . . . . . 1 . . . . . 1 . . . . . . . . . . . . . Garrison Index 1 | . . . . . . . . . . . . . . . . . . 1 . . . . . . . . . . . . . . . . . . . Unreport Threat 12 | . . . 2 . . . . . . . . . . . 2 . . 4 . . . . . 2 1 . . . . . 1 . . . . . . Locate Traps 3 | . 1 . . . . . . . . . . . . . 1 . . 1 . . . . . . . . . . . . . . . . . . . Garrison Registry 3 | . . . . . . . . 1 . . . . . . . . . . 1 . . . 1 . . . . . . . . . . . . . . Patrol Navigation 3 | . . . . . . . . . . . . 1 . . . . . . 1 . . . . . . . . . . . . . 1 . . . . Security Stations 1 | . . . . . . . . . . 1 . . . . . . . . . . . . . . . . . . . . . . . . . . . EX-Prototype ID Bank 1 | . . . . . 1 . . . . . . . . . . . . . . . . . . . . . . . . . . . . . . . . Fabricator Hacks . | . . . . . . . . . . . . . . . . . . . . . . . . . . . . . . . . . . . . . . Repair Station Hacks 18 | . . . . . . . . . . . 8 . . . . . . . . . . . . . 3 . . 2 . . 3 2 . . . . . Scan Component 11 | . . . . . . . . . . . 4 . . . . . . . . . . . . . 2 . . 1 . . 3 1 . . . . . Repair 7 | . . . . . . . . . . . 4 . . . . . . . . . . . . . 1 . . 1 . . . 1 . . . . . Recycling Unit Hacks . | . . . . . . . . . . . . . . . . . . . . . . . . . . . . . . . . . . . . . . Scanalyzer . | . . . . . . . . . . . . . . . . . . . . . . . . . . . . . . . . . . . . . . Garrison Access Hacks 14 | . . . . . . . 1 . 1 . 1 . 1 . . . . 1 . 1 . 1 . . . . . 1 . 3 1 1 . 1 . . . Unlock Access 11 | . . . . . . . 1 . 1 . 1 . 1 . . . . 1 . 1 . 1 . . . . . 1 . 1 . 1 . 1 . . . Seal Access 3 | . . . . . . . . . . . . . . . . . . . . . . . . . . . . . . 2 1 . . . . . . Unauthorized Hacks 38 | . 2 . 5 . . . 2 . 4 . 1 . 1 . . . . 6 . 1 . . . 3 . . 2 4 . 1 3 2 . 1 . . . Terminals 23 | . . . 3 . . . 2 . 3 . . . . . . . . 5 . . . . . 3 . . 2 2 . . 3 . . . . . . Track 2 | . . . . . . . . . 1 . . . . . . . . . . . . . . . . . . . . . 1 . . . . . . Assimilate 1 | . . . . . . . 1 . . . . . . . . . . . . . . . . . . . . . . . . . . . . . . Botnet 10 | . . . 2 . . . 1 . 1 . . . . . . . . 2 . . . . . 1 . . 1 1 . . 1 . . . . . . Operators 8 | . . . 1 . . . . . 1 . . . . . . . . 1 . . . . . 2 . . 1 1 . . 1 . . . . . . Sabotage 2 | . . . . . . . . . . . . . . . . . . 2 . . . . . . . . . . . . . . . . . . . Fabricators 1 | . . . . . . . . . . . . . . . . . . . . . . . . . . . . 1 . . . . . . . . . Fabnet 1 | . . . . . . . . . . . . . . . . . . . . . . . . . . . . 1 . . . . . . . . . Repair Stations . | . . . . . . . . . . . . . . . . . . . . . . . . . . . . . . . . . . . . . . Recycling Units 4 | . 2 . 2 . . . . . . . . . . . . . . . . . . . . . . . . . . . . . . . . . . Tunnel 4 | . 2 . 2 . . . . . . . . . . . . . . . . . . . . . . . . . . . . . . . . . . Scanalyzers . | . . . . . . . . . . . . . . . . . . . . . . . . . . . . . . . . . . . . . . Garrison Access 10 | . . . . . . . . . 1 . 1 . 1 . . . . 1 . 1 . . . . . . . 1 . 1 . 2 . 1 . . . Restock 2 | . . . . . . . . . . . . . . . . . . . . . . . . . . . . . . 1 . 1 . . . . . Watchers 1 | . . . . . . . . . . . . . . . . . . . . . . . . . . . . . . . . 1 . . . . . Eject 7 | . . . . . . . . . 1 . 1 . 1 . . . . 1 . 1 . . . . . . . 1 . . . . . 1 . . . Data Cores Recovered 3 | . 1 . . . . . . . . . . . . . . . . . . . . . . . . . 1 . . . 1 . . . . . . Used 1 | . . . . . . . . . . . . . . . . . . . . . . . . . . . 1 . . . . . . . . . . Hacking Detections 55 | . 7 . 2 . . . 2 2 2 2 1 1 1 . 2 1 . 7 . 1 2 1 1 2 3 . 1 3 1 . 5 1 1 3 . . . Full Trace Events 2 | . . . . . . . 1 . . 1 . . . . . . . . . . . . . . . . . . . . . . . . . . . Feedback Events . | . . . . . . . . . . . . . . . . . . . . . . . . . . . . . . . . . . . . . . Feedback Blocked . | . . . . . . . . . . . . . . . . . . . . . . . . . . . . . . . . . . . . . . Robot Schematics Acquired 5 | . . . . . . . . . . . . . . . . . . . . . . . . . . . . 2 . . . 3 . . . . . Robots Built . | . . . . . . . . . . . . . . . . . . . . . . . . . . . . . . . . . . . . . . Authchips . | . . . . . . . . . . . . . . . . . . . . . . . . . . . . . . . . . . . . . . Time . | . . . . . . . . . . . . . . . . . . . . . . . . . . . . . . . . . . . . . . Total Robot Build Rating . | . . . . . . . . . . . . . . . . . . . . . . . . . . . . . . . . . . . . . . Part Schematics Acquired 15 | . 1 . . . . . . . . . . . . . . . . . . . . . . . . . . 4 . . . 10 . . . . . Parts Built . | . . . . . . . . . . . . . . . . . . . . . . . . . . . . . . . . . . . . . . Authchips . | . . . . . . . . . . . . . . . . . . . . . . . . . . . . . . . . . . . . . . Time . | . . . . . . . . . . . . . . . . . . . . . . . . . . . . . . . . . . . . . . Total Part Build Rating . | . . . . . . . . . . . . . . . . . . . . . . . . . . . . . . . . . . . . . . Parts Repaired 7 | . . . . . . . . . . . 4 . . . . . . . . . . . . . 1 . . 1 . . . 1 . . . . . Time 288 | . . . . . . . . . . . 152 . . . . . . . . . . . . . 68 . . 37 . . . 31 . . . . . Parts Recycled . | . . . . . . . . . . . . . . . . . . . . . . . . . . . . . . . . . . . . . . Recycled Matter . | . . . . . . . . . . . . . . . . . . . . . . . . . . . . . . . . . . . . . . Retrieved Matter . | . . . . . . . . . . . . . . . . . . . . . . . . . . . . . . . . . . . . . . Retrieved Components . | . . . . . . . . . . . . . . . . . . . . . . . . . . . . . . . . . . . . . . Parts Scanalyzed . | . . . . . . . . . . . . . . . . . . . . . . . . . . . . . . . . . . . . . . Part Schematics Acquired . | . . . . . . . . . . . . . . . . . . . . . . . . . . . . . . . . . . . . . . Parts Damaged . | . . . . . . . . . . . . . . . . . . . . . . . . . . . . . . . . . . . . . . Bothacking | -11 -10 -10 -9 -9 -9 -8 -8 -8 -8 -8 -7 -7 -6 -6 -6 -6 -6 -6 -6 -5 -5 -4 -4 -4 -4 -4 -3 -3 -3 -2 -2 -2 -2 -1 -1 -1 -1 ------------ Run | Jun Mat Min Mat Min Exi Min Mat Gar Mat Gar Fac Gar Fac Gar Ext Cet Arc Hub Gar Fac Gar Fac Gar Fac Arm Lab Res Tes Gar Res Qua Sec Gar Acc Gar Acc Com Used RIF Installer 13 | . . . . . . . . 2 . 1 . 1 . 2 . . . . 1 . 1 . 1 . . . . . 2 . . . 1 . 1 . . Hotswap 1 | . . . . . . . . . . 1 . . . . . . . . . . . . . . . . . . . . . . . . . . . Code Merge 2 | . . . . . . . . . . . . . . 1 . . . . . . . . . . . . . . 1 . . . . . . . . Command Fork 2 | . . . . . . . . . . . . . . . . . . . 1 . . . . . . . . . . . . . . . 1 . . Threat Obfuscator 1 | . . . . . . . . 1 . . . . . . . . . . . . . . . . . . . . . . . . . . . . . Signal Jammer 1 | . . . . . . . . . . . . . . . . . . . . . 1 . . . . . . . . . . . . . . . . Zone Cloak 1 | . . . . . . . . . . . . . . 1 . . . . . . . . . . . . . . . . . . . . . . . Watcher Feeds 1 | . . . . . . . . . . . . . . . . . . . . . . . . . . . . . 1 . . . . . . . . Program Shield 1 | . . . . . . . . . . . . 1 . . . . . . . . . . . . . . . . . . . . . . . . . Autooverride 1 | . . . . . . . . . . . . . . . . . . . . . . . 1 . . . . . . . . . . . . . . Crosswire 1 | . . . . . . . . . . . . . . . . . . . . . . . . . . . . . . . . . 1 . . . . Robots Hacked 143 | . . . . . . . . . 2 . . . . . . . . . 2 . 11 8 14 9 4 . . 2 . 6 10 8 9 2 39 9 8 Non-combat 21 | . . . . . . . . . 2 . . . . . . . . . . . . 3 2 4 . . . . . 1 3 1 . 2 . 2 1 Combat 122 | . . . . . . . . . . . . . . . . . . . 2 . 11 5 12 5 4 . . 2 . 5 7 7 9 . 39 7 7 Autooverrided 22 | . . . . . . . . . . . . . . . . . . . . . . . 1 1 . . . . . 1 1 3 1 . 9 3 2 Robot Hacks Applied 147 | . . . . . . . . . 4 . . . . . . . . . 2 . 12 10 14 8 6 . . 2 . 10 13 4 7 10 31 8 6 parse_system 6 | . . . . . . . . . . . . . . . . . . . . . 1 . 1 . 1 . . . . . 2 . 1 . . . . no_distress 3 | . . . . . . . . . 1 . . . . . . . . . . . . 1 . 1 . . . . . . . . . . . . . ignore_repairs 2 | . . . . . . . . . . . . . . . . . . . . . . . . 2 . . . . . . . . . . . . . drop_inventory 5 | . . . . . . . . . . . . . . . . . . . . . . 2 . . . . . . . . 1 1 . 1 . . . purge_threat 13 | . . . . . . . . . 2 . . . . . . . . . . . . . . . . . . . . 4 . . . 7 . . . block_reporting 4 | . . . . . . . . . . . . . . . . . . . . . . . . . . . . . . 1 2 . . 1 . . . map_route 3 | . . . . . . . . . . . . . . . . . . . . . . . . 1 . . . . . . . . . . . 2 . find_scanalyzer 1 | . . . . . . . . . . . . . . . . . . . . . . . . . . . . . . . 1 . . . . . . disable_scanner 2 | . . . . . . . . . . . . . . . . . . . . . . . . . . . . . . . 2 . . . . . . report_analyses 1 | . . . . . . . . . . . . . . . . . . . . . . . . . . . . . . . 1 . . . . . . emergency_deploy 1 | . . . . . . . . . . . . . . . . . . . . . . . . . . . . . . . . . . . . 1 . find_shortcuts 1 | . . . . . . . . . . . . . . . . . . . . . . . . . 1 . . . . . . . . . . . . find_garrison 2 | . . . . . . . . . . . . . . . . . . . . . . 1 . . . . . . . 1 . . . . . . . focus_fire 2 | . . . . . . . . . . . . . . . . . . . . . . . . . . . . . . . . . . . . 2 . reboot_propulsion 1 | . . . . . . . . . . . . . . . . . . . . . . . . . 1 . . . . . . . . . . . . scatter_targeting 1 | . . . . . . . . . . . . . . . . . . . . . . . . . . . . . . . . . . . . 1 . disrupt_area 3 | . . . . . . . . . . . . . . . . . . . . . . . 1 . . . . . . . . . . . 2 . . overload_power 2 | . . . . . . . . . . . . . . . . . . . . . . . 1 . 1 . . . . . . . . . . . . amplify_resonance 3 | . . . . . . . . . . . . . . . . . . . . . . . . . . . . . . . . 1 . . 2 . . disable_weapons 1 | . . . . . . . . . . . . . . . . . . . . . . . . . . . . . . . . . . . . . 1 reboot_system 1 | . . . . . . . . . . . . . . . . . . . . . 1 . . . . . . . . . . . . . . . . go_dormant 1 | . . . . . . . . . . . . . . . . . . . . . . . 1 . . . . . . . . . . . . . . overwrite_iff 13 | . . . . . . . . . . . . . . . . . . . . . 1 . 1 . 2 . . 2 . . 1 . . . 4 . 2 streamctrl_low 1 | . . . . . . . . . 1 . . . . . . . . . . . . . . . . . . . . . . . . . . . . streamctrl_high 1 | . . . . . . . . . . . . . . . . . . . . . . . . . . . . . . . . 1 . . . . . formatsys_low 4 | . . . . . . . . . . . . . . . . . . . . . . 1 . . . . . . . . 1 . . 1 . . 1 formatsys_high 69 | . . . . . . . . . . . . . . . . . . . 2 . 9 5 9 4 . . . . . 4 2 1 6 . 23 2 2 Relay Couplers Released 125 | . . . . . . . . 5 4 12 3 5 3 5 . . . 4 8 4 8 . 9 . . . . 3 6 3 . 3 16 3 21 . . Ejected 21 | . . . . . . . . . 4 . 3 . 3 . . . . 4 . 4 . . . . . . . . . . . . . 3 . . . Machine Destruction 91 | . . . . . . . . 5 . 12 . 5 . 5 . . . . 8 . 8 . 9 . . . . . 6 . . . 16 . 17 . . Programmers 13 | . . . . . . . . . . . . . . . . . . . . . . . . . . . . 3 . 3 . 3 . . 4 . . Attached 44 | . . . . . . . . . 1 . . . . . . 1 . . 4 1 6 1 4 1 1 . 1 . 1 2 2 1 9 . 5 1 2 Crosswired 16 | . . . . . . . . . . . . . . . . . . . . . . . . . . . . . . . . . 11 . 5 . . Merged Code Value 260 | . . . . . . . . . . . . . . . . . . . 8 . 6 . . . . . . . 15 . . . 121 6 104 . . Fabnet Peak Effective % 3 | . . . . . . . . . . . . . . . . . . . . . . . . . . . . . . 3 3 3 3 1 1 1 1 Autooverrided 6 | . . . . . . . . . . . . . . . . . . . . . . . . . . . . . . 2 2 1 1 . . . . Robots Rewired 69 | . . . . . 4 . . 5 . . . 3 . 2 11 . . . . . 8 . 3 . 14 . . . 4 . . . 4 . 11 . . Allies Hacked 2 | . . . . . . . . . . . . . . . . . . . . . . . . . . . . . . 1 . . . . 1 . . Hacks Repelled . | . . . . . . . . . . . . . . . . . . . . . . . . . . . . . . . . . . . . . . Allies | -11 -10 -10 -9 -9 -9 -8 -8 -8 -8 -8 -7 -7 -6 -6 -6 -6 -6 -6 -6 -5 -5 -4 -4 -4 -4 -4 -3 -3 -3 -2 -2 -2 -2 -1 -1 -1 -1 -------- Run | Jun Mat Min Mat Min Exi Min Mat Gar Mat Gar Fac Gar Fac Gar Ext Cet Arc Hub Gar Fac Gar Fac Gar Fac Arm Lab Res Tes Gar Res Qua Sec Gar Acc Gar Acc Com Total Allies 206 | . . . . . 4 . . 5 1 . . 3 . 2 13 . . . 2 . 18 8 17 7 17 . . 3 4 8 6 6 12 1 56 5 8 Largest Group 42 | . . . . . 4 4 . 4 1 . . 3 . 2 7 5 . . 2 1 11 13 12 8 8 . . 3 4 6 3 2 6 7 42 26 17 Highest-Rated Group 2342 | . . . . . 45 45 . 76 26 . . 60 . 97 277 277 . . 58 29 448 550 564 375 360 . . 168 167 269 343 521 319 364 2342 1648 1259 Highest-Rated Ally 343 | . . . . . 21 21 . 31 26 . . 20 . 51 159 159 . . 29 29 51 56 65 65 56 . . 56 46 76 343 343 148 64 95 178 219 Total Orders 197 | . . . . . . . . 2 3 . . 3 . 28 9 2 . 4 2 3 12 11 38 4 9 . . . 2 11 6 4 4 . 35 . 5 STAY 77 | . . . . . . . . 1 . . . 3 . 2 . 1 . . 1 2 8 3 11 1 5 . . . 1 8 . 2 2 . 25 . 1 ROAM 3 | . . . . . . . . . 1 . . . . 1 . . . 1 . . . . . . . . . . . . . . . . . . . FOLLOW 57 | . . . . . . . . 1 . . . . . 6 . 1 . . 1 1 4 5 12 1 4 . . . 1 3 2 2 2 . 10 . 1 AID 17 | . . . . . . . . . . . . . . . . . . . . . . 1 7 2 . . . . . . 4 . . . . . 3 DROP 4 | . . . . . . . . . . . . . . . . . . . . . . 1 3 . . . . . . . . . . . . . . PICKUP 2 | . . . . . . . . . . . . . . . . . . . . . . . 2 . . . . . . . . . . . . . . COLLECT 4 | . . . . . . . . . . . . . . . . . . . . . . 1 3 . . . . . . . . . . . . . . EXPLORE 3 | . . . . . . . . . 2 . . . . . . . . 1 . . . . . . . . . . . . . . . . . . . RETURN 30 | . . . . . . . . . . . . . . 19 9 . . 2 . . . . . . . . . . . . . . . . . . . Ally Attacks 1554 | . . . . . . 18 . 37 . . . 16 . 156 219 62 . . 11 7 46 100 83 68 61 . . 7 15 66 21 57 25 . 208 85 186 Total Damage 50207 | . . . . . . 203 . 601 . . . 359 . 2812 4900 1682 . . 189 55 548 3168 2640 2946 2492 . . 291 325 2185 761 3076 1026 . 7181 3109 9658 Kills 254 | . . . . . . 5 . 6 . . . 2 . 20 36 9 . . 1 . 6 18 14 13 13 . . 2 6 9 2 14 5 . 39 13 21 Allies Corrupted 8 | . . . . . . . . . . . . . . 1 . . . . . . . . 1 1 1 . . . . 1 . 1 . . . . 2 Allies Melted 3 | . . . . . . . . . . . . . . . . . . . . . . . . . 1 . . . . . . . 2 . . . . Intel | -11 -10 -10 -9 -9 -9 -8 -8 -8 -8 -8 -7 -7 -6 -6 -6 -6 -6 -6 -6 -5 -5 -4 -4 -4 -4 -4 -3 -3 -3 -2 -2 -2 -2 -1 -1 -1 -1 ------- Run | Jun Mat Min Mat Min Exi Min Mat Gar Mat Gar Fac Gar Fac Gar Ext Cet Arc Hub Gar Fac Gar Fac Gar Fac Arm Lab Res Tes Gar Res Qua Sec Gar Acc Gar Acc Com Robot Analysis Total 5 | . 4 . 1 . . . . . . . . . . . . . . . . . . . . . . . . . . . . . . . . . . Derelict Logs Recovered 1 | . . . . 1 . . . . . . . . . . . . . . . . . . . . . . . . . . . . . . . . . Drone Launches 213 | . . . . . . . . . 4 . . . . 128 72 6 . 3 . . . . . . . . . . . . . . . . . . . Drone Recoveries 177 | . . . . . . . . . . . . . . 117 59 . . 1 . . . . . . . . . . . . . . . . . . . Exploration | -11 -10 -10 -9 -9 -9 -8 -8 -8 -8 -8 -7 -7 -6 -6 -6 -6 -6 -6 -6 -5 -5 -4 -4 -4 -4 -4 -3 -3 -3 -2 -2 -2 -2 -1 -1 -1 -1 ------------- Run | Jun Mat Min Mat Min Exi Min Mat Gar Mat Gar Fac Gar Fac Gar Ext Cet Arc Hub Gar Fac Gar Fac Gar Fac Arm Lab Res Tes Gar Res Qua Sec Gar Acc Gar Acc Com Turns Passed 55205 | . 1320 305 3027 1888 2441 841 2319 1959 1056 1538 787 1181 93 1667 1932 558 2011 1784 1904 566 3239 1054 2435 983 2514 493 865 1755 1248 1968 1840 1684 2156 291 2258 412 833 Spaces Moved 21436 | 1 649 325 1044 549 565 145 683 573 333 769 272 413 36 610 732 186 826 760 892 189 1088 405 989 497 764 168 421 582 400 857 831 716 1123 159 1220 216 448 Core 262 | . . 216 . . . . . . . . . . . . . . . . . . . . . . . . . . . . . . . . . . 46 Treads 20482 | . 563 109 1044 549 565 145 214 437 333 769 272 413 36 610 732 186 826 760 892 189 1088 405 989 497 764 168 421 582 400 857 831 716 1123 159 1220 216 402 Legs 87 | 1 86 . . . . . . . . . . . . . . . . . . . . . . . . . . . . . . . . . . . . Wheels 605 | . . . . . . . 469 136 . . . . . . . . . . . . . . . . . . . . . . . . . . . . . Hover . | . . . . . . . . . . . . . . . . . . . . . . . . . . . . . . . . . . . . . . Flight . | . . . . . . . . . . . . . . . . . . . . . . . . . . . . . . . . . . . . . . Fastest Speed 50 | 120 120 50 160 320 320 560 230 162 162 160 160 240 240 240 242 160 160 160 160 160 160 160 160 160 160 241 163 170 170 155 160 160 160 160 160 160 50 Average Speed 202 | 120 160 87 239 320 404 560 264 273 210 168 217 240 240 242 242 207 160 160 160 183 236 160 184 171 224 241 168 216 237 161 160 160 160 160 160 160 148 Slowest Speed 560 | 120 240 240 480 320 560 560 410 560 242 240 240 240 240 322 242 325 160 160 240 320 320 160 250 250 250 241 172 256 252 246 160 160 160 160 160 160 160 Overloaded Moves . | . . . . . . . . . . . . . . . . . . . . . . . . . . . . . . . . . . . . . . Propulsion Burnouts . | . . . . . . . . . . . . . . . . . . . . . . . . . . . . . . . . . . . . . . Robots Hopped 1 | . . . . . . . . . . . . . . . . . . . . . . . . . . . . . . . . . . . . . 1 Cave-ins Triggered . | . . . . . . . . . . . . . . . . . . . . . . . . . . . . . . . . . . . . . . Teleports 1 | . . . . . . . . . . . . . . . . . . . . . . . . . . . . . . . . 1 . . . . . Exploration Rate (%) 55 | 1 96 65 79 97 88 54 54 60 37 83 4 45 1 60 90 67 97 72 77 8 85 10 62 19 59 96 22 77 55 23 89 57 85 7 95 11 26 Regions Visited 37 Branch Regions 14 Pre-discovered Areas 6 | . 2 . 2 1 1 . . . . . . . . . . . . . . . . . . . . . . . . . . . . . . . . Known Exits Taken 16 | . . . . . . . 1 . 1 . 1 . 1 . . . . 1 . 1 . 1 . 1 1 1 1 1 . 1 1 1 . 1 . . . Unknown Exits Taken 11 | 1 1 1 1 1 1 1 . . . . . . . . 1 1 1 . . . . . . . . . . . . . . . . . . 1 . Scrap Searched 1 | . . . . 1 . . . . . . . . . . . . . . . . . . . . . . . . . . . . . . . . . Spaces Dug 148 | . . . . . . . . 15 23 14 2 . . . . 10 . 4 . 4 14 . . 7 6 . 2 2 . 10 . 9 4 1 11 5 5 Terrain Destroyed 824 | . . . . . . . 3 34 42 78 2 . . . 6 59 2 294 3 5 17 4 14 19 55 . 2 14 59 30 21 17 17 1 13 7 6 Melee 16 | . . . . . . . . . 2 . 2 . . . . . . . . . . . . . . . . . . . . 7 . . . 5 . Projectile 266 | . . . . . . . 3 2 13 1 . . . . 1 1 2 31 . 5 1 4 11 19 55 . 2 14 1 30 21 10 17 1 13 2 6 AOE 540 | . . . . . . . . 32 27 77 . . . . 5 58 . 263 3 . 14 . 3 . . . . . 58 . . . . . . . . Terrain Rammed . | . . . . . . . . . . . . . . . . . . . . . . . . . . . . . . . . . . . . . . Walls Destroyed . | . . . . . . . . . . . . . . . . . . . . . . . . . . . . . . . . . . . . . . Machines Disabled . | . . . . . . . . . . . . . . . . . . . . . . . . . . . . . . . . . . . . . . Actions | -11 -10 -10 -9 -9 -9 -8 -8 -8 -8 -8 -7 -7 -6 -6 -6 -6 -6 -6 -6 -5 -5 -4 -4 -4 -4 -4 -3 -3 -3 -2 -2 -2 -2 -1 -1 -1 -1 --------- Run | Jun Mat Min Mat Min Exi Min Mat Gar Mat Gar Fac Gar Fac Gar Ext Cet Arc Hub Gar Fac Gar Fac Gar Fac Arm Lab Res Tes Gar Res Qua Sec Gar Acc Gar Acc Com Total 30249 | . 796 346 1353 625 692 156 947 881 600 900 455 546 43 801 875 316 1295 1209 1246 348 1555 787 1494 580 1348 247 555 973 590 1299 1256 1177 1461 185 1446 262 604 Wait 4571 | . 49 8 59 3 34 1 33 102 178 41 156 25 . 129 66 19 298 273 217 114 213 337 315 29 313 51 82 253 70 265 289 218 136 6 90 13 86 Move 21399 | . 648 324 1043 548 564 144 683 572 333 768 271 412 36 609 731 185 825 759 891 188 1086 405 988 496 763 167 420 582 399 856 830 715 1121 158 1218 215 446 Hop 1 | . . . . . . . . . . . . . . . . . . . . . . . . . . . . . . . . . . . . . 1 Pick Up 362 | . 7 7 45 10 11 . 25 8 6 3 8 10 2 12 2 7 4 20 18 5 16 5 31 2 17 5 2 10 5 10 2 6 23 3 15 . . Fast Attach 257 | . 5 2 14 2 1 . 12 2 4 1 3 1 1 8 3 14 11 6 9 1 21 2 16 3 41 4 8 11 4 15 13 10 4 2 3 . . Attach 226 | . 6 . 18 10 6 . 18 14 2 4 4 8 2 5 1 6 2 12 8 5 13 4 6 1 14 4 3 8 3 8 8 10 6 2 2 3 . Detach 110 | . 2 . 4 1 2 . 3 1 2 1 1 1 . 3 . 1 1 2 1 1 11 1 4 1 12 2 4 8 3 5 12 9 4 1 3 3 . Swap 268 | . 1 . 8 4 2 1 5 7 16 15 3 5 . 1 4 11 4 4 11 5 10 2 13 5 11 . 5 15 16 24 15 18 17 1 4 1 4 Drop 381 | . 4 5 25 11 7 . 23 15 9 3 3 2 2 20 5 22 6 12 18 . 21 3 35 4 30 3 8 21 8 21 13 3 13 1 5 . . Fire 2253 | . 71 . 116 32 19 8 145 52 38 49 4 44 . 6 18 51 144 114 73 29 131 28 85 36 146 11 23 65 75 95 74 155 137 11 86 19 63 Melee 66 | . . . . . . . . 4 6 15 2 1 . . . . . . . . . . . . . . . . . . . 31 . . 1 6 . Ram . | . . . . . . . . . . . . . . . . . . . . . . . . . . . . . . . . . . . . . . Kick . | . . . . . . . . . . . . . . . . . . . . . . . . . . . . . . . . . . . . . . Crush 53 | . 3 . 21 4 . 2 . . 6 . . . . . 4 . . 7 . . 1 . . . 1 . . . . . . 1 . . . . 3 Escape Stasis 66 | . . . . . . . . 23 . . . 12 . 2 6 . . . . . 13 . . 2 . . . . 7 . . 1 . . . . . Rewire 236 | . . . . . 46 . . 81 . . . 25 . 6 35 . . . . . 19 . 1 1 . . . . . . . . . . 19 2 1 Trap . | . . . . . . . . . . . . . . . . . . . . . . . . . . . . . . . . . . . . . . Miscellaneous . | . . . . . . . . . . . . . . . . . . . . . . . . . . . . . . . . . . . . . . Route ------- -11/Junkyard -10/Materials (discovered 5 exits: *Mat x3 / [*Min x2]) -10/Mines -9/Materials (discovered 3 exits: *Mat x2 / *Min) -9/Mines (discovered 3 exits: *Mat x2 / *Exi) -9/Exiles -8/Mines -8/Materials (discovered 4 exits: *Fac x2 / [*Sto] / Gar) -8/Garrison (discovered 4 exits: *Mat x4) -8/Materials (discovered 4 exits: *Fac / [*Sto x2] / Gar) -8/Garrison (discovered 2 exits: *Fac x2) -7/Factory -7/Garrison -6/Factory -6/Garrison (discovered 2 exits: *Ext x2) -6/Extension (discovered 2 exits: *Fac / *Cet) -6/Cetus (discovered 2 exits: *Fac / [*Arc]) -6/Archives (discovered 3 exits: *Fac / *Hub x2) -6/Hub_04(d) (discovered 5 exits: *Fac x4 / Gar) -6/Garrison (discovered 3 exits: *Fac x3) -5/Factory -5/Garrison (discovered 3 exits: *Fac x3) -4/Factory -4/Garrison (discovered 4 exits: Res x3 / *Fac) -4/Factory (discovered 3 exits: Upp x2 / *Arm) -4/Armory -4/Lab -3/Research (discovered 2 exits: *Res / *Tes) -3/Testing -3/Garrison -2/Research -2/Quarantine (discovered 2 exits: *Acc / *Sec) -2/Section 7 (discovered 2 exits: *Acc / Gar) -2/Garrison (discovered 3 exits: *Acc x3) -1/Access -1/Garrison (discovered 3 exits: *Acc x3) -1/Access -1/Command 0b10 Command History --------- Turn | Location | Event 1 | -11/Junkyard | Discovered new exit (range 0) 1 | -11/Junkyard | Entered Materials 302 | -10/Materials | Build established: Mutant 316 | -10/Materials | Discovered new exit (range 10) 359 | -10/Materials | Discovered new exit (range 15) 546 | -10/Materials | Discovered new exit (range 5) 652 | -10/Materials | Lost 3 parts (1p1u1w) 655 | -10/Materials | Discovered new exit (range 15) 1171 | -10/Materials | Discovered new exit (range 4) 1321 | -10/Materials | Entered Mines 1321 | -10/Mines | Discovered new exit (range 3) 1334 | -10/Mines | Joined a pair of Derelicts in attacking an 0b10 outpost 1474 | -10/Mines | Assembled infested the area 1479 | -10/Mines | Assisted by a Guerilla fighting off Assembled 1511 | -10/Mines | Released all parts (4) 1513 | -10/Mines | Core integrity fell below 50% 1515 | -10/Mines | Core integrity fell below 20% 1541 | -10/Mines | Lost 3 parts (2n1u) 1626 | -10/Mines | Entered Materials 1626 | -9/Materials | Evolved 2 slots: Utility x2 2102 | -9/Materials | Build established: Scavenger-Mutant 2487 | -9/Materials | Lost 3 parts (2n1u) 2903 | -9/Materials | Discovered new exit (range 5) 3233 | -9/Materials | Core integrity fell below 50% 3254 | -9/Materials | Discovered new exit (range 9) 3716 | -9/Materials | Build established: Mutant 3798 | -9/Materials | Central database locked down 4026 | -9/Materials | First assault squad dispatched 4258 | -9/Materials | Discovered new exit (range 7) 4653 | -9/Materials | Entered Mines 4675 | -9/Mines | Met a Derelict bent on vengeance 4770 | -9/Mines | Met a Derelict testing a Signal Generator 4778 | -9/Mines | Found Signal Generator 4930 | -9/Mines | Found the Drone Emporium 4957 | -9/Mines | Found Prototype Device 4957 | -9/Mines | Identified Decoy Drone Bay 5265 | -9/Mines | Learned location of Storage (-8) 5393 | -9/Mines | Found a damaged Exp. Sensor Array with a note attached 5400 | -9/Mines | Found Prototype Device 5401 | -9/Mines | Identified Exp. Sensor Array 5569 | -9/Mines | Deemed a non-threat by the Exiles lab entrance 5569 | -9/Mines | Discovered new exit (range 5) 5854 | -9/Mines | Discovered new exit (range 6) 5918 | -9/Mines | Discovered new exit (range 9) 5951 | -9/Mines | Met a Derelict shopkeep closing up shop 5955 | -9/Mines | Core integrity fell below 20% 6356 | -9/Mines | Build established: Scavenger-Mutant 6541 | -9/Mines | Entered Exiles 6541 | -9/Exiles | Found Exiles lab destroyed 6982 | -9/Exiles | Learned location of Zion (-6) 7156 | -9/Exiles | Opened EX-Vault 7223 | -9/Exiles | Found Army-in-a-Box 8138 | -9/Exiles | Build established: Hauler-Mutant 8926 | -9/Exiles | Discovered new exit (range 12) 8982 | -9/Exiles | Entered Mines 8982 | -8/Mines | Accompanied by 4 allies 9784 | -8/Mines | Discovered new exit (range 7) 9823 | -8/Mines | Entered Materials 9823 | -8/Materials | Evolved 2 slots: Propulsion x2 10827 | -8/Materials | Discovered new exit (range 20) 10844 | -8/Materials | Discovered new exit (range 6) 12046 | -8/Materials | Discovered new exit (range 13) 12142 | -8/Materials | Identified exit to Garrison 12142 | -8/Materials | Entered Garrison 12206 | -8/Garrison | Triggered checkpoint 12532 | -8/Garrison | Triggered checkpoint 12656 | -8/Garrison | Core integrity fell below 50% 12739 | -8/Garrison | Discovered new exit (range 8) 12836 | -8/Garrison | Triggered checkpoint 12920 | -8/Garrison | Triggered checkpoint 13006 | -8/Garrison | Discovered new exit (range 72) 13006 | -8/Garrison | Discovered new exit (range 36) 13006 | -8/Garrison | Discovered new exit (range 29) 13006 | -8/Garrison | Discovered new exit (range 75) 13335 | -8/Garrison | Triggered checkpoint 13554 | -8/Garrison | Build established: Mutant 13561 | -8/Garrison | Installed Relay Interface Framework 13650 | -8/Garrison | Triggered checkpoint 13777 | -8/Garrison | Expanded RIF knowledge: Threat Obfuscation 14065 | -8/Garrison | Garrison Relay disabled 14101 | -8/Garrison | Entered Materials 14283 | -8/Materials | Discovered new exit (range 60) 14287 | -8/Materials | Discovered new exit (range 59) 14303 | -8/Materials | Discovered new exit (range 40) 15157 | -8/Materials | Identified exit to Garrison 15157 | -8/Materials | Entered Garrison 15180 | -8/Garrison | Triggered checkpoint 15279 | -8/Garrison | Triggered checkpoint 15342 | -8/Garrison | Destroyed 7 combat bots 15608 | -8/Garrison | Discovered new exit (range 14) 15668 | -8/Garrison | Triggered checkpoint 15682 | -8/Garrison | Learned Factory security intel 15800 | -8/Garrison | Triggered checkpoint 15924 | -8/Garrison | Expanded RIF knowledge: Hotswap 15957 | -8/Garrison | Discovered new exit (range 8) 16110 | -8/Garrison | Triggered checkpoint 16146 | -8/Garrison | Core integrity fell below 20% 16184 | -8/Garrison | Garrison Relay disabled 16357 | -8/Garrison | Garrison Relay disabled 16475 | -8/Garrison | Triggered checkpoint 16500 | -8/Garrison | Garrison Relay disabled 16695 | -8/Garrison | Entered Factory 16695 | -7/Factory | Evolved 2 slots: Utility x2 16907 | -7/Factory | Repaired Hvy. Particle Cannon 16947 | -7/Factory | Repaired Hvy. Particle Cannon 16991 | -7/Factory | Repaired Med. Treads 17023 | -7/Factory | Repaired Hpw. Tractor Beam 17211 | -7/Factory | Build established: Hacker-Mutant 17468 | -7/Factory | Identified exit to Garrison 17482 | -7/Factory | Entered Garrison 17662 | -7/Garrison | Triggered checkpoint 17712 | -7/Garrison | Triggered checkpoint 17715 | -7/Garrison | Garrison Relay disabled 17727 | -7/Garrison | System corruption reached 10% 17754 | -7/Garrison | Lost 4 parts (1n2u1w) 18009 | -7/Garrison | Build established: Mutant 18066 | -7/Garrison | Triggered checkpoint 18110 | -7/Garrison | Triggered checkpoint 18186 | -7/Garrison | Destroyed 8 combat bots 18192 | -7/Garrison | Lost 4 parts (1p2n1u) 18372 | -7/Garrison | Discovered new exit (range 12) 18402 | -7/Garrison | Expanded RIF knowledge: Program Shield 18429 | -7/Garrison | Build established: Scavenger-Mutant 18436 | -7/Garrison | Identified exit to Factory 18470 | -7/Garrison | Triggered checkpoint 18663 | -7/Garrison | Entered Factory 18663 | -6/Factory | Evolved 2 slots: Utility x2 18756 | -6/Factory | Identified exit to Garrison 18756 | -6/Factory | Entered Garrison 19058 | -6/Garrison | Triggered checkpoint 19064 | -6/Garrison | Triggered checkpoint 19066 | -6/Garrison | Build established: Mutant 19104 | -6/Garrison | Triggered checkpoint 19166 | -6/Garrison | Discovered new exit (range 11) 19239 | -6/Garrison | Expanded RIF knowledge: Zone Cloak 19296 | -6/Garrison | Triggered checkpoint 19406 | -6/Garrison | Heavy support dispatched to Extension 19472 | -6/Garrison | Heavy support dispatched to Extension 19600 | -6/Garrison | Found Prototype Device 19785 | -6/Garrison | Discovered new exit (range 13) 20010 | -6/Garrison | Triggered checkpoint 20064 | -6/Garrison | Spotted B-75 Beast 20108 | -6/Garrison | Allies destroyed B-75 Beast 20204 | -6/Garrison | Expanded RIF knowledge: Code Merge 20231 | -6/Garrison | Heavy support dispatched to Extension 20337 | -6/Garrison | Heavy support dispatched to Extension 20423 | -6/Garrison | Entered Extension 20658 | -6/Extension | Rescued a captive Derelict 21439 | -6/Extension | Build established: Scavenger-Mutant 21726 | -6/Extension | Spotted B-75 Beast 21736 | -6/Extension | Allies destroyed B-75 Beast 21738 | -6/Extension | Spotted B-75 Beast 21742 | -6/Extension | Allies destroyed B-75 Beast 21955 | -6/Extension | Build established: Mutant 22235 | -6/Extension | Rescued A7 22333 | -6/Extension | Discovered new exit (range 10) 22336 | -6/Extension | Discovered new exit (range 6) 22355 | -6/Extension | Entered Cetus 22355 | -6/Cetus | Accompanied by 5 allies (A7) 22360 | -6/Cetus | Acquired a Cetus Manufacturing Module code from A7 22386 | -6/Cetus | Spotted Cetus Guard 22386 | -6/Cetus | Spotted Cetus Guard 22389 | -6/Cetus | Spotted Cetus Guard 22389 | -6/Cetus | Spotted Cetus Guard 22397 | -6/Cetus | Build established: Scavenger-Mutant 22400 | -6/Cetus | Allies destroyed Cetus Guard 22414 | -6/Cetus | Destroyed Cetus Guard 22417 | -6/Cetus | Allies destroyed Cetus Guard 22419 | -6/Cetus | Destroyed Cetus Guard 22512 | -6/Cetus | System corruption reached 10% 22522 | -6/Cetus | Escorted A7 to Cetus Mainframe 22589 | -6/Cetus | Discovered new exit (range 15) 22632 | -6/Cetus | Spotted Cetus Guard 22632 | -6/Cetus | Spotted Cetus Guard 22640 | -6/Cetus | Allies destroyed Cetus Guard 22640 | -6/Cetus | Spotted Cetus Guard 22646 | -6/Cetus | Destroyed Cetus Guard 22649 | -6/Cetus | Destroyed Cetus Guard 22649 | -6/Cetus | Spotted Cetus Guard 22652 | -6/Cetus | Destroyed Cetus Guard 22662 | -6/Cetus | Discovered new exit (range 16) 22678 | -6/Cetus | Met Revision 17 22694 | -6/Cetus | System corruption reached 30% 22855 | -6/Cetus | Destroyed A7 22861 | -6/Cetus | Extracted ID and sensor layout for unrecognized location from A7's data core 22913 | -6/Cetus | Entered Archives 23104 | -6/Archives | Discovered new exit (range 15) 23252 | -6/Archives | Discovered new exit (range 14) 23704 | -6/Archives | Discovered new exit (range 16) 24141 | -6/Archives | Build established: Mutant 24924 | -6/Archives | Entered Hub_04(d) 24942 | -6/Hub_04(d) | Discovered new exit (range 32) 24948 | -6/Hub_04(d) | Discovered new exit (range 55) 25169 | -6/Hub_04(d) | Discovered new exit (range 15) 25169 | -6/Hub_04(d) | Spotted B-75 Beast 25223 | -6/Hub_04(d) | Build established: Hacker-Mutant 25454 | -6/Hub_04(d) | Destroyed 7 combat bots 25623 | -6/Hub_04(d) | Discovered new exit (range 13) 25695 | -6/Hub_04(d) | Build established: Scavenger-Mutant 26041 | -6/Hub_04(d) | Build established: Hacker-Mutant 26527 | -6/Hub_04(d) | Network Hub disabled 26527 | -6/Hub_04(d) | Network Hub disabled 26528 | -6/Hub_04(d) | Core integrity fell below 50% 26537 | -6/Hub_04(d) | Network Hub disabled 26695 | -6/Hub_04(d) | Identified exit to Garrison 26708 | -6/Hub_04(d) | Entered Garrison 26978 | -6/Garrison | Triggered checkpoint 26992 | -6/Garrison | Build established: Botlord-Mutant 27016 | -6/Garrison | Garrison Relay disabled 27138 | -6/Garrison | Triggered checkpoint 27304 | -6/Garrison | Triggered checkpoint 27651 | -6/Garrison | Found Relay Coupler [Proto] 27653 | -6/Garrison | Found Relay Coupler [Proto] 27658 | -6/Garrison | Found Relay Coupler [Proto] 27660 | -6/Garrison | Found Relay Coupler [Proto] 27784 | -6/Garrison | Triggered checkpoint 28030 | -6/Garrison | Triggered checkpoint 28042 | -6/Garrison | Lost 3 parts (1p2u) 28052 | -6/Garrison | Garrison Relay disabled 28171 | -6/Garrison | Discovered new exit (range 30) 28171 | -6/Garrison | Discovered new exit (range 19) 28171 | -6/Garrison | Discovered new exit (range 66) 28297 | -6/Garrison | Expanded RIF knowledge: Command Fork 28452 | -6/Garrison | Triggered checkpoint 28612 | -6/Garrison | Entered Factory 28612 | -5/Factory | Accompanied by 1 ally 28612 | -5/Factory | Evolved 2 slots: Power x1, Weapon x1 28912 | -5/Factory | First assault squad dispatched 28987 | -5/Factory | System corruption reached 10% 29017 | -5/Factory | Lost 3 parts (1n2u) 29148 | -5/Factory | Identified exit to Garrison 29175 | -5/Factory | Spotted B-75 Beast 29178 | -5/Factory | Entered Garrison 29222 | -5/Garrison | Build established: Botlord-Tank 29404 | -5/Garrison | Spotted B-75 Beast 29568 | -5/Garrison | Triggered checkpoint 29574 | -5/Garrison | Build established: Botlord-Mutant 29748 | -5/Garrison | Triggered checkpoint 29800 | -5/Garrison | Garrison Relay disabled 29913 | -5/Garrison | Triggered checkpoint 30085 | -5/Garrison | Destroyed B-75 Beast 30104 | -5/Garrison | Triggered checkpoint 30237 | -5/Garrison | Discovered new exit (range 10) 30461 | -5/Garrison | Triggered checkpoint 30567 | -5/Garrison | Garrison Relay disabled 30784 | -5/Garrison | Triggered checkpoint 30891 | -5/Garrison | Discovered new exit (range 8) 30976 | -5/Garrison | Triggered checkpoint 31225 | -5/Garrison | Discovered new exit (range 15) 31310 | -5/Garrison | Expanded RIF knowledge: Signal Jamming 31545 | -5/Garrison | Build established: Botlord-Gunner 32354 | -5/Garrison | Build established: Botlord-Mutant 32408 | -5/Garrison | Identified exit to Factory 32417 | -5/Garrison | Entered Factory 32417 | -4/Factory | Accompanied by 10 allies 32417 | -4/Factory | Evolved 2 slots: Utility x2 33417 | -4/Factory | First assault squad dispatched 33471 | -4/Factory | Identified exit to Garrison 33471 | -4/Factory | Entered Garrison 33471 | -4/Garrison | Accompanied by 3 allies 33551 | -4/Garrison | Triggered checkpoint 33596 | -4/Garrison | Triggered checkpoint 33646 | -4/Garrison | Discovered new exit (range 5) 33652 | -4/Garrison | Identified exit to Factory 33695 | -4/Garrison | Garrison Relay disabled 33757 | -4/Garrison | Discovered new exit (range 61) 33757 | -4/Garrison | Discovered new exit (range 27) 33757 | -4/Garrison | Discovered new exit (range 71) 33757 | -4/Garrison | Discovered exit to Factory (range 16) 33786 | -4/Garrison | Spotted B-86 Titan 33858 | -4/Garrison | Triggered checkpoint 33865 | -4/Garrison | Destroyed B-86 Titan 33888 | -4/Garrison | Triggered checkpoint 33994 | -4/Garrison | Triggered checkpoint 34317 | -4/Garrison | Expanded RIF knowledge: Autooverride 34555 | -4/Garrison | Spotted B-86 Titan 34584 | -4/Garrison | Destroyed B-86 Titan 34873 | -4/Garrison | Build established: Botlord-Gunner 35098 | -4/Garrison | Triggered checkpoint 35403 | -4/Garrison | Build established: Botlord-Mutant 35633 | -4/Garrison | Garrison Relay disabled 35906 | -4/Garrison | Entered Factory 35906 | -4/Factory | Accompanied by 8 allies 35927 | -4/Factory | Found Quantum Capacitor 36301 | -4/Factory | Spotted B-86 Titan 36309 | -4/Factory | Allies destroyed B-86 Titan 36393 | -4/Factory | Identified exit to Upper Caves 36393 | -4/Factory | Identified exit to Armory 36889 | -4/Factory | Entered Armory 36889 | -4/Armory | Accompanied by 2 allies 37139 | -4/Armory | First assault squad dispatched 37262 | -4/Armory | System corruption reached 10% 37285 | -4/Armory | Destroyed 7 combat bots 37320 | -4/Armory | Found Prototype Processor 37320 | -4/Armory | Identified Exp. Terrain Scan Processor 37323 | -4/Armory | Found Exp. Terrain Scan Processor 37465 | -4/Armory | Repaired Broken Exp. Sensor Array 37742 | -4/Armory | Lost 4 parts (3u1w) 37935 | -4/Armory | Lost 4 parts (3u1w) 38690 | -4/Armory | Lost 3 parts (2u1w) 38759 | -4/Armory | Found Enh. Force Lance 39281 | -4/Armory | Discovered new exit (range 2) 39283 | -4/Armory | Identified exit to Lab 39375 | -4/Armory | Core integrity fell below 50% 39403 | -4/Armory | Entered Lab 39403 | -4/Lab | Discovered new exit (range 9) 39420 | -4/Lab | Identified exit to Research 39433 | -4/Lab | Hidden lab's door opened automatically 39433 | -4/Lab | Sensor layout match revealed 39434 | -4/Lab | Gained access to the hidden lab's interior 39557 | -4/Lab | Found Prototype Special Weapon 39594 | -4/Lab | Found Prototype Energy Gun 39605 | -4/Lab | Found Prototype Protection 39605 | -4/Lab | Identified Exp. Powered Armor 39612 | -4/Lab | Found Prototype Energy Cannon 39676 | -4/Lab | Found Prototype Hackware 39722 | -4/Lab | Found Alien Artifact 39722 | -4/Lab | Identified Core Expander 39722 | -4/Lab | Installed Core Expander, added new Utility slot 39724 | -4/Lab | Identified Quantum Router 39739 | -4/Lab | Found Alien Artifact 39739 | -4/Lab | Identified Integrated Dissipator 39739 | -4/Lab | Installed Integrated Dissipator, increased core heat dissipation (+20) 39747 | -4/Lab | Found Alien Artifact 39896 | -4/Lab | Entered Research 39896 | -3/Research | Evolved 2 slots: Propulsion x2 39910 | -3/Research | Identified Warp Cannon 40096 | -3/Research | Revision forces began assault on 0b10 40109 | -3/Research | Met up with Revision 17++ 40405 | -3/Research | Identified Tachyon Dispersion Ray 40407 | -3/Research | Identified Gui. Remote Datajack 40596 | -3/Research | Research terminal network offline 40648 | -3/Research | Discovered new exit (range 22) 40671 | -3/Research | Build established: Botlord-Skirmisher 40682 | -3/Research | Identified exit to Research 40712 | -3/Research | Discovered new exit (range 23) 40748 | -3/Research | Identified exit to Testing 40761 | -3/Research | Entered Testing 40998 | -3/Testing | Scanned by Researcher 41085 | -3/Testing | Found Prototype Device 41120 | -3/Testing | Build established: Botlord-Mutant 41134 | -3/Testing | Identified AEGIS Remote Shield 41409 | -3/Testing | Found Prototype Protection 41409 | -3/Testing | Identified SHELL Armor 41611 | -3/Testing | Found Prototype Ballistic Cannon 41611 | -3/Testing | Identified Omega Cannon 41891 | -3/Testing | Found Prototype Processor 41891 | -3/Testing | Identified Exp. Melee Analysis Suite 41966 | -3/Testing | Found Prototype Device 41966 | -3/Testing | Identified Exp. Thermal Shield 42235 | -3/Testing | Found Prototype Launcher 42280 | -3/Testing | Repaired Enh. Nova Cannon 42416 | -3/Testing | Garrison activated, responded to threat 42516 | -3/Testing | Identified exit to Garrison 42516 | -3/Testing | Entered Garrison 42542 | -3/Garrison | Triggered checkpoint 42543 | -3/Garrison | Identified Mni. Smartbomb Launcher 42574 | -3/Garrison | Garrison Relay disabled 42756 | -3/Garrison | Expanded RIF knowledge: Watcher Feeds 42847 | -3/Garrison | Triggered checkpoint 42901 | -3/Garrison | Destroyed 7 combat bots 42903 | -3/Garrison | Spotted B-86 Titan 42991 | -3/Garrison | Triggered checkpoint 43004 | -3/Garrison | Destroyed B-86 Titan 43195 | -3/Garrison | Discovered exit to Research (range 11) 43248 | -3/Garrison | Triggered checkpoint 43522 | -3/Garrison | Triggered checkpoint 43580 | -3/Garrison | Expanded RIF knowledge: Code Merge 43610 | -3/Garrison | Garrison Relay disabled 43764 | -3/Garrison | Entered Research 43764 | -2/Research | Accompanied by 4 allies 43764 | -2/Research | Evolved 2 slots: Utility x2 43934 | -2/Research | Identified exit to Garrison 44100 | -2/Research | Discovered new exit (range 18) 44151 | -2/Research | Found Quantum Capacitor 44394 | -2/Research | Identified exit to Quarantine 44491 | -2/Research | Allied Derelicts emerged from ambush trap array 45360 | -2/Research | Local machine network offline 45732 | -2/Research | Entered Quarantine 45792 | -2/Quarantine | Spotted Alpha 7 45799 | -2/Quarantine | Assimilated Alpha 7 with formatsys_high 45821 | -2/Quarantine | Found Alien Launcher 45821 | -2/Quarantine | Identified Sigix Terminator 45882 | -2/Quarantine | Found Prototype Processor 45882 | -2/Quarantine | Identified Exp. Core Analyzer 45985 | -2/Quarantine | Discovered new exit (range 19) 45998 | -2/Quarantine | Found Prototype Ballistic Gun 45998 | -2/Quarantine | Identified Multirail 46440 | -2/Quarantine | System corruption reached 10% 46642 | -2/Quarantine | Found Alien Artifact 46642 | -2/Quarantine | Identified Subatomic Replicator 46838 | -2/Quarantine | Found Alien Energy Cannon 46838 | -2/Quarantine | Identified Core Cannon 47223 | -2/Quarantine | Found Alien Slashing Weapon 47223 | -2/Quarantine | Identified Sigix Broadsword 47425 | -2/Quarantine | Spotted Fortress 47444 | -2/Quarantine | Assimilated Fortress with formatsys_high 47548 | -2/Quarantine | Discovered new exit (range 6) 47570 | -2/Quarantine | Identified exit to Section 7 47572 | -2/Quarantine | Entered Section 7 47572 | -2/Section 7 | Accompanied by 1 ally 47633 | -2/Section 7 | Identified exit to Garrison 47719 | -2/Section 7 | Found Alien Artifact 47719 | -2/Section 7 | Identified Integrity Redistributor 47719 | -2/Section 7 | Used Integrity Redistributor, redistributed integrity from core (-258) 47842 | -2/Section 7 | Scanned by Researcher 47868 | -2/Section 7 | Found Alien Artifact 47868 | -2/Section 7 | Identified Spacefold Activator 47969 | -2/Section 7 | Destroyed 7 combat bots 47978 | -2/Section 7 | Spotted S7 Guard 47995 | -2/Section 7 | Found Alien Artifact 47995 | -2/Section 7 | Identified Core Regenerator 47995 | -2/Section 7 | Used Core Regenerator, restored core integrity (+362) 48014 | -2/Section 7 | Hijacked S7 Guard control node with streamctrl_high 48140 | -2/Section 7 | Discovered new exit (range 16) 48194 | -2/Section 7 | Repaired Imp. Cloaking Device 48303 | -2/Section 7 | Spotted Executioner 48303 | -2/Section 7 | Spotted Executioner 48339 | -2/Section 7 | Destroyed Executioner 48364 | -2/Section 7 | Found Exp. Core Analyzer 48384 | -2/Section 7 | Intercept squad dispatched 48385 | -2/Section 7 | Garrison activated, responded to threat 48505 | -2/Section 7 | Spotted B-99 Colossus 48580 | -2/Section 7 | Found Alien Artifact 48580 | -2/Section 7 | Identified Integrated Reactor 48580 | -2/Section 7 | Installed Integrated Reactor, increased core energy generation (+10) 48651 | -2/Section 7 | Found Alien Artifact 48651 | -2/Section 7 | Identified LRC Boosters 48651 | -2/Section 7 | Installed LRC Boosters, increased mass support (+10) 48720 | -2/Section 7 | Found Integrity Redistributor 48723 | -2/Section 7 | Found Integrity Redistributor 48822 | -2/Section 7 | First assault squad dispatched 48951 | -2/Section 7 | Identified Transdimensional Reconstructor 48951 | -2/Section 7 | Warped through subspace 49081 | -2/Section 7 | Identified exit to Access 49256 | -2/Section 7 | Entered Garrison 49256 | -2/Garrison | 1 ally did not survive the journey 49290 | -2/Garrison | Triggered checkpoint 49512 | -2/Garrison | Triggered checkpoint 49563 | -2/Garrison | Garrison Relay disabled 49771 | -2/Garrison | Triggered checkpoint 49791 | -2/Garrison | Triggered checkpoint 49824 | -2/Garrison | Spotted B-90 Cyclops 49830 | -2/Garrison | Destroyed B-90 Cyclops 49881 | -2/Garrison | Spotted B-90 Cyclops 49896 | -2/Garrison | Rewired B-90 Cyclops 49900 | -2/Garrison | Rewired B-75 Beast 49948 | -2/Garrison | Triggered checkpoint 50003 | -2/Garrison | Discovered exit to Access (range 10) 50072 | -2/Garrison | Garrison Relay disabled 50083 | -2/Garrison | Used Integrity Redistributor, redistributed integrity from core (-316) 50084 | -2/Garrison | Core integrity fell below 50% 50209 | -2/Garrison | Allies destroyed B-90 Cyclops 50296 | -2/Garrison | Discovered exit to Access (range 11) 50394 | -2/Garrison | Triggered checkpoint 50583 | -2/Garrison | Garrison Relay disabled 50748 | -2/Garrison | Expanded RIF knowledge: Crosswire 50810 | -2/Garrison | Triggered checkpoint 50883 | -2/Garrison | Garrison Relay disabled 50932 | -2/Garrison | Discovered exit to Access (range 12) 51022 | -2/Garrison | Triggered checkpoint 51412 | -2/Garrison | Entered Access 51412 | -1/Access | Accompanied by 6 allies 51412 | -1/Access | Evolved 2 slots: Power x1, Weapon x1 51476 | -1/Access | Found Antimissile System 51528 | -1/Access | Build established: Botlord-Assassin 51690 | -1/Access | Identified exit to Garrison 51703 | -1/Access | Entered Garrison 51703 | -1/Garrison | Accompanied by 7 allies 51772 | -1/Garrison | Triggered checkpoint 51847 | -1/Garrison | Build established: Botlord-Mutant 51870 | -1/Garrison | Triggered checkpoint 51984 | -1/Garrison | Spotted B-99 Colossus 52003 | -1/Garrison | Allies destroyed B-99 Colossus 52006 | -1/Garrison | Triggered checkpoint 52008 | -1/Garrison | Triggered checkpoint 52028 | -1/Garrison | Triggered checkpoint 52200 | -1/Garrison | Triggered checkpoint 52225 | -1/Garrison | Garrison Relay disabled 52260 | -1/Garrison | Discovered new exit (range 9) 52380 | -1/Garrison | Triggered checkpoint 52561 | -1/Garrison | Discovered new exit (range 13) 52578 | -1/Garrison | Identified exit to Access 52855 | -1/Garrison | Discovered exit to Access (range 12) 52888 | -1/Garrison | Found embedded Infiltrators 52904 | -1/Garrison | Triggered checkpoint 52924 | -1/Garrison | Triggered checkpoint 52999 | -1/Garrison | Expanded RIF knowledge: Command Fork 53074 | -1/Garrison | Triggered checkpoint 53093 | -1/Garrison | Build established: Commander-Mutant 53219 | -1/Garrison | Garrison Relay disabled 53464 | -1/Garrison | Garrison Relay disabled 53630 | -1/Garrison | Garrison Relay disabled 53673 | -1/Garrison | Garrison Relay disabled 53961 | -1/Garrison | Entered Access 53961 | -1/Access | Accompanied by 26 allies 54211 | -1/Access | First assault squad dispatched 54276 | -1/Access | Build established: Botlord-Mutant 54356 | -1/Access | Discovered new exit (range 9) 54373 | -1/Access | Entered Command 54373 | -1/Command | Accompanied by 16 allies 54603 | -1/Command | Spotted B-99 Colossus 54608 | -1/Command | Assimilated Colossus 10a with formatsys_high 54668 | -1/Command | Spotted B-99 Colossus 54686 | -1/Command | Allies destroyed B-99 Colossus 54940 | -1/Command | Spotted Combat Programmer 54940 | -1/Command | Spotted M Guard 54941 | -1/Command | Spotted Combat Programmer 54942 | -1/Command | Combat Programmer assimilated allied 9S-2YO(g) 54943 | -1/Command | Spotted M Guard 54947 | -1/Command | Allies destroyed Combat Programmer 54948 | -1/Command | Destroyed Combat Programmer 54976 | -1/Command | Allies destroyed M Guard 54996 | -1/Command | Allies destroyed M Guard 54996 | -1/Command | All MAIN.C guards destroyed 55088 | -1/Command | Met MAIN.C 55183 | -1/Command | Released all parts (16) 55206 | -1/Command | Interfaced with 0b10 Conduit 55206 | *** | Assimilated 0b10! Last Messages --------------- 55183_ Released Enh. Nova Cannon. 55183_ Released Coolant Network. 55183_ Released Adv. Heavy Siege Treads. 55183_ Released Lgt. Quantum Reactor. 55183_ Released Gui. Remote Datajack. 55183_ Released Lgt. Quantum Reactor. 55183_ Released Quantum Capacitor. 55183_ Released Adv. Heavy Siege Treads. 55183_ Released Huge Storage Unit. 55183_ Released SHELL Armor. 55183_ Released Relay Coupler [C]. 55183_ Released Relay Coupler [Sentry]. 55183_ Released Relay Coupler [Behemoth]. 55183_ Released Antimissile System. 55183_ Released Relay Coupler [Hunter]. 55186_ K-01 Serf collects debris. 55206_ Interfacing with system... 55206_ Overriding active MAIN.C lock. [Achievement: MAIN.CPP] [Achievement: Superachiever] Map ----- +----------------------------------------------------+ | ################################################## | | ##### ############################################ | | ################################################## | | # ########################################### | | # ########################################### | | # ########################################### | | # ########################################### | | # ########################################### | | # ########################################### | | ##+############################################### | | ## ############################################### | | ## ############################################### | | ## ############################################### | | ## ############################################### | | ## # #####""""""" """" ############### | | ## # #####"" "" ############### | | + #####""""" "" %############### | | # #####""""""""""" ; | | # #####" " """ % %; | | # #####"" """""" ; | | + #####"" """""" %############### | | # ##### " """""" ############### | | # ##### " "" ############### | | # ##### " " ""############### | | # #####""""""""" """""""############### | | + #####"" @"""""""""############### | | ########### """""""""""############### | | ########### " " " " ############### | | ########### " " " " ############### | | """ " " " """" " ############### | | """ """ " " """" ############### | | """ " " " " ############### | | ###### """""""""" " ############### | | ###### " """ " """"""""############### | | ###### """ " " " ############### | | ########################################## | | ########################################## | | ################################################## | | ######################################### | | ######################################### | | ######################################### | | ######################################### | | ######################################### | | #####+############################################ | | # ################################# | | + T################################# | | # #######"""################################## | | # #######"""################################## | | # #### ################################# | | # #### ################################# | +----------------------------------------------------+ Best States ------------- Heat Dissipation 162 Coolant Potential 100 Energy Generation 71 Energy Capacity 850 Matter Stores 300 Matter Capacity 300 Sight Range 23 Robot Scan Range 20 Terrain Scan Range 24 Terrain Scan Density 1010 ECM Strength 1 Jamming Range 16 Cloak Strength 3 Armor Coverage 1800 Resistance: EM 15 Core Shielding 20 Propulsion Shielding 33 Point Defense Rating 240 Weapon Cycling 25 Phase Shifting 15 Evasion (%) 55 Targeting Accuracy 8 Melee Accuracy 5 Launcher Accuracy 40 Target Analysis 5 Core Analysis 8 Recoil Reduction 6 Particle Charging 25 Kinecelleration 30 Offensive Hacking 24 Defensive Hacking 25 Relay Coupler Types 8 Relay Coupler Value 201 Item Schematics ----------------- Huge Storage Unit | -10/Materials | Hacked Enh. Armored Medium Treads | -3/Testing | Archive Exp. Cooling System | -3/Testing | Archive Enh. Coil Gun | -3/Testing | Archive Centrium Light Armor Plating | -3/Testing | Archive Thermal Barrier | -2/Section 7 | Archive Exp. Biometal Heavy Treads | -2/Section 7 | Archive Adv. Matter Compressor | -2/Section 7 | Archive Exp. System Shield | -2/Section 7 | Archive Prc. Energy Filter | -2/Section 7 | Archive Imp. Q-thruster | -2/Section 7 | Archive Centrium Medium Armor Plating | -2/Section 7 | Archive Enh. Biometal Leg | -2/Section 7 | Archive Exp. EM Disruption Field | -2/Section 7 | Archive Exp. ECM Suite | -2/Section 7 | Archive Robot Schematics ------------------ R-06 Scavenger | -3/Testing | Archive A-27 Freighter | -3/Testing | Archive H-88 Terminator | -2/Section 7 | Archive T-07 Excavator | -2/Section 7 | Archive R-10 Processor | -2/Section 7 | Archive Fabricated ------------ Nothing Alien Tech Used ----------------- Core Expander Integrated Dissipator Sigix Terminator Subatomic Replicator Core Cannon Sigix Broadsword Integrity Redistributor Spacefold Activator Core Regenerator Integrated Reactor LRC Boosters Transdimensional Reconstructor Achievements -------------- MAIN.CPP No Explosion For You Superachiever Challenges ------------ None Game ------ Seed HeatImpactComputer Manual? 0 Play Time 06:10:17 Cumulative 311.8 hours Start 2023.04.18 @ 06:26:30 End 2023.04.20 @ 19:55:52 Sessions 41 Manual Loads 0 Difficulty Rogue Special Mode None Game No. 451 Rogue 428 Adventurer 4 Explorer 19 Win Type 4 Total 13 Types 10/0/0/2/1/0/0/0/0 Lore% 71 Gallery% 91 Achievement% 76 Wizard Run 0 Options --------- ASCII 0 Keyboard 1 Movement Numpad Keybinds 0 Fullscreen 2 Font 18/SmallcapsGlow Map View 76x50 Tactical HUD 1 Map Filters NONE Filters NONE Steam 1 RUN: 5d43b042-05ea-44c0-af59-00b3efd09a40